Workbook

Sheet Help

Sheet Intro
C5: 0 | E5: 0
C8: 0
C195: Cementitious materials
C196: Fibers
C197: Aggregates
C198: Water
C199: Solids in powder form
C200: Admixtures

Sheet 45% Agg.
B2: Mixture ID: | I2: Design Proportions (Non SSD) | K2: Actual Batched Proportions | M2: Yielded Proportions | P2: Cylinder Size | R2: Volume of Cylinder | S2: Amount of Cylinders | T2: Extra Mixing Material Factor | U2: Amount of Concrete Wanted (ft3) | V2: Divisible Factor | X2: Please Do Not Change These Values | AB2: Total amount of Aggregate | AE2: =SUM(E17:E23) -> 0.95
B3: YD | C3: Design Batch Size (ft3): | G3: 27 | P3: diameter (in) | Q3: height (in) | R3: ft3 | X3: Desired Volume | Z3: 27
B4: Cementitious Materials | H4: SG | I4: Amount (lb/yd3) | J4: Volume (ft3) | K4: Amount (lb) | L4: Volume (ft3) | M4: Amount (lb/yd3) | N4: Volume (ft3) | P4: 3 | Q4: 6 | R4: 0.02454369261 | S4: 3 | T4: 1.5 | U4: 0.1104466167 | V4: 162.9746617 | X4: % Aggregate | Z4: 0.5
B5: CM1 | C5: Portland Cement | D5: Class C | F5: Amt: | H5: 3.15 | I5: 325.151359 | J5: 1.654209193 | K5: 1.995103751 | L5: 0.01015010049 | M5: 5.638 | N5: 0.02868335368
B6: CM2 | C6: Fly Ash | D6: Class: F | F6: Amt: | G6: 1.3 | H6: 2.3 | I6: 308.6357344 | J6: 2.150471951 | K6: 2.593634877 | L6: 0.007976700097 | M6: 3.665 | N6: 0.03728835979
B7: CM3 | C7: Graphene | F7: Amt: | G7: 0.1 | H7: 1 | I7: 10.32226537 | J7: 0.1654209193 | K7: 0.1995103751 | L7: 0.0006135923152 | N7: 5.351625397
B8: CM4 | C8: Slag | F8: Amt: | G8: 1.4 | H8: 0 | I8: 0 | J8: 2.31589287 | K8: 0 | L8: 0.01421014068 | N8: 0.02553651059
B10: Total Aggregates: | I10: 644.1093588 | J10: 6.285994934 | K10: 4.788249003 | L10: 0.03295053358 | M10: 9.303 | N10: 5.443133621
B11: Fibers
B12: F1 | C12: Grace Fibers | H12: 0.91 | I12: 3.25 | J12: 0.05723443223 | K12: 0.01994175024 | L12: 0.0003511860778
B13: F2 | C13: Fiber 2 | K13: 0 | L13: 0
B15: Total Fibers: | I15: 3.25 | J15: 0.05723443223
B16: Aggregates
B17: A1 | C17: Utelite | E17: 0.25 | F17: Abs: | G17: 0 | H17: 1.5 | I17: 315.9 | J17: 3.375 | K17: 1.938338124 | L17: 0.02070874064
B18: A2 | C18: Size: 2-4 | E18: 0.15 | F18: Abs: | G18: 0.23 | H18: 0.37 | I18: 46.7532 | J18: 2.025 | K18: 0.2868740423 | L18: 0.01242524438
B19: A3 | C19: Size: 1-2 | E19: 0.16 | F19: Abs: | G19: 0.2 | H19: 0.41 | I19: 55.26144 | J19: 2.16 | K19: 0.3390799491 | L19: 0.01325359401
B20: A4 | C20: Size: 0.5-1 | E20: 0.14 | F20: Abs: | G20: 0.2 | H20: 0.45 | I20: 53.0712 | J20: 1.89 | K20: 0.3256408048 | L20: 0.01159689476
B21: A5 | C21: Size: 0.25-0.5 | E21: 0.11 | F21: Abs: | G21: 0.28 | H21: 0.68 | I21: 63.01152 | J21: 1.485 | K21: 0.3866338444 | L21: 0.00911184588
B22: A6 | C22: Size: 0.1-0.3 | E22: 0.09 | F22: Abs: | G22: 0.35 | H22: 0.85 | I22: 64.4436 | J22: 1.215 | K22: 0.3954209772 | L22: 0.007455146629
B23: A7 | C23: Size: 0.04-0.125 | E23: 0.05 | F23: Abs: | G23: 0.25 | H23: 0.8 | I23: 33.696 | J23: 0.675 | K23: 0.2067560665 | L23: 0.004141748127
B25: Total Aggregates: | I25: 632.13696 | J25: 13.5 | K25: 3.878743808 | L25: 0.07869321442
B26: Water
B27: W1 | C27: Water for CM Hydration (W1a + W1b) | H27: 1 | I27: 193.2328076 | J27: 7.156770653 | K27: 1.185661658 | L27: 0.04391339474
C28: W1a. Water from Admixtures | I28: 0 | K28: 0
C29: W1b. Additional Water | I29: 193.2328076 | K29: 1.185661658
B30: W2 | C30: Water for Aggregates, SSD | H30: 1 | I30: 286565.3946 | K30: 1758.343239
B32: Total Water (W1 + W2): | I32: 286758.6274 | J32: 7.156770653 | K32: 1759.528901 | L32: 0.04391339474
B33: Solids Content of Latex, Dyes and Admixtures in Powder Form
B34: S1 | C34: Latex (if used)
B35: S2 | C35: Liquid Dye (if used)
B36: S3 | C36: Other Latex or Liquid Dye (if used)
B37: P1 | C37: Pigment 1 (Powder Form)
B39: Total Solids of Admixtures: | I39: 0 | J39: 0
B40: Admixtures (including Pigments in Liquid Form)
H41: % Solids | I41: Dosage (fl oz/cwt) | J41: Total (ml) | K41: Amount (ml) | L41: Water in Admixture (lb) | M41: Dosage (fl oz/cwt) | N41: Water in Admixture (lb/yd3)
B43: Ad1 | C43: Adva 195 | G43: lb/gal | I43: 1.39 | J43: 118404.4251 | K43: 726.5204534
B44: Ad2 | C44: Eclipse Floor 200 | G44: lb/gal | I44: 3 | J44: 255549.119 | K44: 1568.029756
B45: Ad3 | G45: lb/gal | I45: 0 | J45: 0 | K45: 0
B46: Ad4 | G46: lb/gal | I46: 1 | J46: 85183.03967 | K46: 522.6765852
B48: Water from Admixtures (W1a): | J48: 118404.4251
B50: Cement-Cementitious Materials Ratio | I50: 0.5048076923 | K50: 0.4166666667 | M50: 0.606041062
B51: Water-Cementitious Materials Ratio | I51: 0.3 | K51: 0.32
B52: Slump, Slump Flow, in. | I52: 3 +- 1 | K52: 3 +- 1
B53: M | C53: Mass of Concrete. lbs | I53: 288038.1237 | K53: 1768.195894
B54: V | C54: Absolute Volume of Concrete | I54: 26 | K54: 0.1555571427
B55: T | C55: Theorectical Density, lb/ft3 = (M / V) | I55: 10668.07865 | K55: 11366.85762
B56: D | C56: Design Density, lb/ft3 = (M / 27) | I56: 10668.07866
B57: D | C57: Measured Density, lb/ft3 | K57: 79.2
B58: A | C58: Air Content, % = [(T - D) / T x 100%] | I58: -7.118600403e-10 | K58: 1
B59: Y | C59: Yield, ft3 = (M / D) | I59: 27 | K59: 22.32570573
B60: Ry | C60: Relative Yield = (Y / YD) | K60: =K59/K57 -> 0.2818902238

Sheet Designs & Results
B2: References For Mix Design | S2: Results | AB2: Values for Predicting 28-day Compressive Strength of Concrete* | AF2: Notes
B3: 1.Aggregate Size Mixes | F3: 2.W/C Ratio | I3: 3.Total Aggregates | L3: 4.Cementitious Materials | P3: 5.Fibers | S3: Mix Design | T3: Name of Mixer(s) | U3: Date Cast | V3: Date Broken | W3: Compressive Load (lbs) Specimen 1 | X3: Area (in2) | Y3: Compressive Strength (psi) | Z3: Estimated 28-day Strength (psi) | AF3: For the year of 2015 we have implemented the use of Utelite to help with the shrinkage of the concrete. The Utelite should be soaked at least 24 hours in advance to allow the concrete to be saturated. This will allow for water to be released over time and to help the concrete to be internally cured
B5: Mix | C5: Material | D5: Amount | F5: Mix | G5: Ratio | I5: Mix | J5: % of Agg. | L5: Mix | M5: Material | N5: % by Volume Compared to Cement Content | P5: Mix | Q5: Amount (lb) of Fibers per yd3 | AB5: Days of Cure | AC5: % Strenth | AD5: Reliability
S6: LAEHH | AB6: 7-day | AC6: 0.7 | AD6: Good to use | AF6: 70% water, dry but moldable
B7: A | C7: Utelite | D7: 0.25 | F7: A | G7: 0.32 | I7: A | J7: 0.67 | S7: LADHH | AB7: 14 day** | AC7: 0.9 | AD7: Try not to use
C8: Size: 2-4 | D8: 0.2 | F8: B | G8: 0.34 | I8: B | J8: 0.58 | L8: A | M8: Fly Ash | N8: 0.8 | P8: A | Q8: 3.75 | AB8: 21-day** | AC8: 0.95 | AD8: Try not to use
C9: Size: 1-2 | D9: 0.16 | F9: C | G9: 0.36 | I9: C | J9: 0.55 | M9: Metakaolin | N9: 0 | P9: B | AB9: 28-day | AC9: 1 | AD9: Good to use | AF9: 60% water
C10: Size: 0.5-1 | D10: 0.14 | F10: D | G10: 0.38 | I10: D | J10: 0.6 | M10: Silica Fume | N10: 0 | P10: C
C11: Size: 0.25-0.5 | D11: 0.11 | F11: E | G11: 0.3 | I11: E | J11: 0.65 | L11: B | M11: Fly Ash | P11: D | AB11: Notes about Compressive Strength
C12: Size: 0.1-0.3 | D12: 0.09 | F12: F | I12: F | J12: 0.59 | M12: Metakaolin | P12: E | AB12: *These values are extimates from looking on different sites on the internet and rounded up for a safety factor. These values also may not be as accurate with the different materials and admixtures used in the concrete canoe. | AF12: very wet
C13: Size: 0.04-0.125 | D13: 0.05 | F13: G | I13: G | M13: Silica Fume | P13: F | AF13: 70% - wet
C14: TOTAL | D14: =SUM(D7:D13) -> 1 | F14: H | I14: H | L14: C | M14: Fly Ash | P14: G
B15: L | C15: Utelite | D15: 0.25 | F15: I | I15: I | M15: Metakaolin | P15: H | Q15: 3.25
C16: Size: 2-4 | D16: 0.23 | F16: J | I16: J | M16: Silica Fume
C17: Size: 1-2 | D17: 0.14 | F17: K | I17: K | L17: D | M17: Fly Ash | AB17: ** The values for the 7-day and 28 day strength are generally accepted however the 21 and 14 day strengths are empirical and are less reliable.
C18: Size: 0.5-1 | D18: 0.13 | F18: L | I18: L | M18: Metakaolin
C19: Size: 0.25-0.5 | D19: 0.11 | F19: M | I19: M | M19: Silica Fume | AF19: Due to the challenges faced with the Silica Fume, we have not used it as of yet for this project.
C20: Size: 0.1-0.3 | D20: 0.09 | F20: N | I20: N | L20: E | M20: Fly Ash | AF20: Another mix design was added for when the statistical analysis can provide the best amount of aggregate for our mix.
C21: Size: 0.04-0.125 | D21: 0.05 | F21: O | M21: Metakaolin
C22: TOTAL | D22: =SUM(D15:D21) -> 1 | F22: P | M22: Silica Fume
F23: Q | L23: F | M23: Fly Ash | N23: 1
F24: R | M24: Metakaolin | N24: 0 | AF24: Too much fiber, Found a glitch, too much water was being added.
M25: Silica Fume | N25: 0 | AF25: Too much fiber, considering adding a admixture portion
L26: G | M26: Fly Ash | N26: 0.8902902664 | AF26: Too much fiber, a fiber portion was added to the references for mix design and mix design name
M27: Metakaolin | N27: 0 | AF27: Found a glitch in the fiber calculation. It was fixed throughout the design. The mess ups are mentioned as Fiber D in the design
M28: Silica Fume | N28: 0 | AF28: Made an adjustment for the water content to add 70% initially and then more as necessary by 10% increments. CBABA was a little thick with its 80% water which makes it hard to work with.
L29: H | M29: Fly Ash | N29: 0.9
M30: Metakaolin | N30: 0
M31: Silica Fume | N31: 0
L32: I | M32: Fly Ash
M33: Metakaolin
M34: Silica Fume | AF34: Need to keep track of how much water is actually put into the mix.
L35: J | M35: Fly Ash | AF35: 80% water used.
M36: Metakaolin | AF36: 80% water used. Halfway floats. Maybe should have used 70% water.
M37: Silica Fume | AF37: 80% water used. Floats. Estimated 28 day compression strength to be approximately 1550 psi.
L38: K | M38: Fly Ash | AF38: 80% water used. Floats. Estimated 28 day compression strength to be approximately 1800 psi.
M39: Metakaolin | AF39: 70% water used
M40: Silica Fume
L41: L | M41: Fly Ash
M42: Metakaolin | AF42: Too much Aggregate. Looks like the amount of agregate needed would be close to 57%, used 75% water
M43: Silica Fume
L44: M | M44: Fly Ash | AF44: 80% water used. This was too much water
M45: Metakaolin | AF45: 80% water used
M46: Silica Fume | AF46: 80% water used.
L47: N | M47: Fly Ash
M48: Metakaolin | AF48: 80% water use, kinda wet. Maybe use 75%,
M49: Silica Fume | AF49: 70% water used but it was thick
AF50: 80% water used
AF52: 70% water used. A little thick
AF53: 75% water used. Still too much. Maybe 72%
AF54: 70% water used. Notice the last 8 were using Silica Fume.
F58: 0.5 | G58: =1-D58 -> 1 | I58: 96-100
F59: 0.25 | G59: =G58-D59 -> 1 | I59: 65-75
F60: 0.1 | G60: =G59-D60 -> 1 | I60: 20-30
F61: 0.04 | G61: =G60-D61 -> 1 | I61: 0-4
F80: 2 | G80: =1-D80 -> 1 | I80: 96-100
F81: 1 | G81: =G80-D81 -> 1 | I81: 65-75
F82: 0.5 | G82: =G81-D82 -> 1 | I82: 20-30
F83: 0.25 | G83: =G82-D83 -> 1 | I83: 0-4
F84: 0.1 | G84: =G83-D84 -> 1 | I84: 96-101
F85: 0.04 | G85: =G84-D85 -> 1 | I85: 65-76

Sheet Mix Printout
C2: Input Data | N2: Printable Templates - Paste Here
C5: Mix Design | F5: AACAA | I5: INSTRUCTIONS - EXPERIMENTAL MIXES | O5: Mix Design | R5: AADAA | V5: Observations/Improvements | AC5: Mix Design | AF5: AADAA | AJ5: Observations/Improvements
C6: Aggregate Distribution | F6: A | I6: 1. Fill out the top of the form on the Left making sure that the Mix Design corresponds with the Mixes outlined in the sheet titled "Designs & Results". Be sure that the mix in the "45% Agg." sheet also corresponds then Solve the sheets by following the instructions found in the "45% Agg." sheet. 2. After the top of the form is filled out the bottom of the form should fill in automatically. 3. Copy the top section and paste the values for the top section. 4. Copy the values of the mix design and Paste the values on the following sheet. Don't forget to copy over the Fiber mix design (i.e. A, B, C) 5. After the values have been pasted on the sheet to the left, Repeat the process until the desired amount of mixes have been provided. 6. Record the mix design in the sheet titled "Designs & Results" including 7. Print however many spreadsheets were created. Page breaks have been inserted to allow for only one of these forms per page. | O6: Aggregate Distribution | R6: A | AC6: Aggregate Distribution | AF6: A
C7: w/c Ratio | E7: 0.32 | F7: A | O7: w/c Ratio | Q7: 0.32 | R7: A | AC7: w/c Ratio | AE7: 0.32 | AF7: A
C8: % Aggregate | E8: 0.45 | F8: C | O8: % Aggregate | Q8: 0.55 | R8: D | AC8: % Aggregate | AE8: 0.6 | AF8: D
C9: Cementitious Material | F9: A | O9: Cementitious Material | R9: A | AC9: Cementitious Material | AF9: A | AJ9: PASTE
C12: Date: | O12: Date: | AC12: Date:
C13: Name of Mixer: | O13: Name of Mixer: | AC13: Name of Mixer:
C15: Fiber Mix | E15: A | F15: =IF($E$8='45% Agg.'!$Z$4,'45% Agg.'!K12,IF($E$8='Mix 1'!$R$10,'Mix 1'!K12,IF($E$8='Mix 2'!$R$10,'Mix 2'!K11,IF($E$8='Mix 3'!$R$10,'Mix 3'!K11,IF($E$8='Mix 4'!$R$10,'Mix 4'!K11,IF($E$8=#REF!,#REF!,"")))))) -> 0 | O15: Fiber Mix | Q15: A | R15: 0.01994175024 | AC15: Fiber Mix | AE15: A | AF15: 0.01533980788
C17: Aggregates | O17: Aggregates | AC17: Aggregates
C18: Utelite | F18: =IF($E$8='45% Agg.'!$Z$4,'45% Agg.'!K17,IF($E$8='Mix 1'!$R$10,'Mix 1'!K16,IF($E$8='Mix 2'!$R$10,'Mix 2'!K15,IF($E$8='Mix 3'!$R$10,'Mix 3'!K15,IF($E$8='Mix 4'!$R$10,'Mix 4'!K15,IF($E$8=#REF!,#REF!,"")))))) -> 0 | O18: Utelite | R18: 1.421447957 | AC18: Utelite | AF18: 1.033780333
C19: Size: 2-4 | F19: =IF($E$8='45% Agg.'!$Z$4,'45% Agg.'!K18,IF($E$8='Mix 1'!$R$10,'Mix 1'!K17,IF($E$8='Mix 2'!$R$10,'Mix 2'!K16,IF($E$8='Mix 3'!$R$10,'Mix 3'!K16,IF($E$8='Mix 4'!$R$10,'Mix 4'!K16,IF($E$8=#REF!,#REF!,"")))))) -> 1.163002874 | O19: Size: 2-4 | R19: 0.2804990636 | AC19: Size: 2-4 | AF19: 0.203999319
C20: Size: 1-2 | F20: =IF($E$8='45% Agg.'!$Z$4,'45% Agg.'!K19,IF($E$8='Mix 1'!$R$10,'Mix 1'!K18,IF($E$8='Mix 2'!$R$10,'Mix 2'!K17,IF($E$8='Mix 3'!$R$10,'Mix 3'!K17,IF($E$8='Mix 4'!$R$10,'Mix 4'!K17,IF($E$8=#REF!,#REF!,"")))))) -> 0.1721244254 | O20: Size: 1-2 | R20: 0.2486586293 | AC20: Size: 1-2 | AF20: 0.1808426395
C21: Size: 0.5-1 | F21: =IF($E$8='45% Agg.'!$Z$4,'45% Agg.'!K20,IF($E$8='Mix 1'!$R$10,'Mix 1'!K19,IF($E$8='Mix 2'!$R$10,'Mix 2'!K18,IF($E$8='Mix 3'!$R$10,'Mix 3'!K18,IF($E$8='Mix 4'!$R$10,'Mix 4'!K18,IF($E$8=#REF!,#REF!,"")))))) -> 0.2034479695 | O21: Size: 0.5-1 | R21: 0.2388032568 | AC21: Size: 0.5-1 | AF21: 0.1736750959
C22: Size: 0.25-0.5 | F22: =IF($E$8='45% Agg.'!$Z$4,'45% Agg.'!K21,IF($E$8='Mix 1'!$R$10,'Mix 1'!K20,IF($E$8='Mix 2'!$R$10,'Mix 2'!K19,IF($E$8='Mix 3'!$R$10,'Mix 3'!K19,IF($E$8='Mix 4'!$R$10,'Mix 4'!K19,IF($E$8=#REF!,#REF!,"")))))) -> 0.1953844829 | O22: Size: 0.25-0.5 | R22: 0.2835314859 | AC22: Size: 0.25-0.5 | AF22: 0.206204717
C23: Size: 0.1-0.3 | F23: =IF($E$8='45% Agg.'!$Z$4,'45% Agg.'!K22,IF($E$8='Mix 1'!$R$10,'Mix 1'!K21,IF($E$8='Mix 2'!$R$10,'Mix 2'!K20,IF($E$8='Mix 3'!$R$10,'Mix 3'!K20,IF($E$8='Mix 4'!$R$10,'Mix 4'!K20,IF($E$8=#REF!,#REF!,"")))))) -> 0.2319803066 | O23: Size: 0.1-0.3 | R23: 0.2899753833 | AC23: Size: 0.1-0.3 | AF23: 0.2108911878
C24: Size: 0.04-0.125 | F24: =IF($E$8='45% Agg.'!$Z$4,'45% Agg.'!K23,IF($E$8='Mix 1'!$R$10,'Mix 1'!K22,IF($E$8='Mix 2'!$R$10,'Mix 2'!K21,IF($E$8='Mix 3'!$R$10,'Mix 3'!K21,IF($E$8='Mix 4'!$R$10,'Mix 4'!K21,""))))) -> 0.2372525863 | O24: Size: 0.04-0.125 | R24: 0.1516211154 | AC24: Size: 0.04-0.125 | AF24: 0.1102699021
C26: Cementitious Materials | O26: Cementitious Materials | AC26: Cementitious Materials
C27: Portland Cement | F27: =IF($E$8='45% Agg.'!$Z$4,'45% Agg.'!K5,IF($E$8='Mix 1'!$R$10,'Mix 1'!K5,IF($E$8='Mix 2'!$R$10,'Mix 2'!K5,IF($E$8='Mix 3'!$R$10,'Mix 3'!K5,IF($E$8='Mix 4'!$R$10,'Mix 4'!K5,IF($E$8=#REF!,#REF!,"")))))) -> 0.9067155872 | O27: Portland Cement | R27: 1.64223827 | AC27: Portland Cement | AF27: 1.100693641
C28: Fly Ash | F28: =IF($E$8='45% Agg.'!$Z$4,'45% Agg.'!K6,IF($E$8='Mix 1'!$R$10,'Mix 1'!K6,IF($E$8='Mix 2'!$R$10,'Mix 2'!K6,IF($E$8='Mix 3'!$R$10,'Mix 3'!K6,IF($E$8='Mix 4'!$R$10,'Mix 4'!K6,IF($E$8=#REF!,#REF!,"")))))) -> 0.8606601923 | O28: Fly Ash | R28: 0.9592756879 | AC28: Fly Ash | AF28: 0.642944857
C29: Metakaolin | E29: 50%)below) | F29: =IF($E$8='45% Agg.'!$Z$4,'45% Agg.'!K8,IF($E$8='Mix 1'!$R$10,'Mix 1'!K8,IF($E$8='Mix 2'!$R$10,'Mix 2'!K8,IF($E$8='Mix 3'!$R$10,'Mix 3'!K8,IF($E$8='Mix 4'!$R$10,'Mix 4'!K8,IF($E$8=#REF!,#REF!,"")))))) -> 0 | O29: Metakaolin | Q29: 50%)below) | R29: 0 | AC29: Metakaolin | AE29: 50%)below) | AF29: 0
C31: Water | D31: 0.7 | E31: =F31*5/7 ->  | F31: =IF($E$8='45% Agg.'!$Z$4,'45% Agg.'!K32,IF($E$8='Mix 1'!$R$10,'Mix 1'!K30,IF($E$8='Mix 2'!$R$10,'Mix 2'!K28,IF($E$8='Mix 3'!$R$10,'Mix 3'!K28,IF($E$8='Mix 4'!$R$10,'Mix 4'!K28,IF($E$8=#REF!,#REF!,""))))))*0.7 ->  | O31: Water | P31: 0.7 | Q31: 0.7045382142 | R31: 1.455553457 | V31: Total water used: | AC31: Water | AD31: 0.7 | AE31: 0.7045382142 | AF31: 0.9863534999 | AJ31: Total water used:
D32: 0.1 | F32: =IF($E$8='45% Agg.'!$Z$4,'45% Agg.'!K32,IF($E$8='Mix 1'!$R$10,'Mix 1'!K30,IF($E$8='Mix 2'!$R$10,'Mix 2'!K28,IF($E$8='Mix 3'!$R$10,'Mix 3'!K28,IF($E$8='Mix 4'!$R$10,'Mix 4'!K28,IF($E$8=#REF!,#REF!,""))))))*0.1 ->  | P32: 0.1 | R32: 0.2079362082 | AD32: 0.1 | AF32: 0.1409076428
C34: Admixtures | F34: Amount (ml) | O34: Admixtures | R34: Amount (ml) | AC34: Admixtures | AF34: Amount (ml)
C35: Adva 555 M | F35: =IF($E$8='45% Agg.'!$Z$4,'45% Agg.'!K43,IF($E$8='Mix 1'!$R$10,'Mix 1'!K40,IF($E$8='Mix 2'!$R$10,'Mix 2'!K38,IF($E$8='Mix 3'!$R$10,'Mix 3'!K38,IF($E$8='Mix 4'!$R$10,'Mix 4'!K38,""))))) -> Amount (ml) | O35: Adva 555 M | R35: 2.72379529 | AC35: Adva 555 M | AF35: 1.916217677
C36: Eclipse Floor 200 | F36: =IF($E$8='45% Agg.'!$Z$4,'45% Agg.'!K44,IF($E$8='Mix 1'!$R$10,'Mix 1'!K41,IF($E$8='Mix 2'!$R$10,'Mix 2'!K39,IF($E$8='Mix 3'!$R$10,'Mix 3'!K39,IF($E$8='Mix 4'!$R$10,'Mix 4'!K39,IF($E$8=#REF!,#REF!,"")))))) -> 0 | O36: Eclipse Floor 200 | R36: 5.87869487 | AC36: Eclipse Floor 200 | AF36: 4.135721606
C39: Mix Design | F39: =F40&F41&F42&F43&E49 -> AAAAA | I39: * Notice that the % Aggregate is not a round number like those shown in the sheets. If a more presice aggregate amount is needed such as 57% rather than 55% or 60% go to any sheet and specity the percent aggregate in the designing parameters table. Change that amount to the desired percentage and also change the amount on this sheet to match it. | O39: Break Data | AC39: Break Data
C40: Aggregate Distribution | F40: A
C41: w/c Ratio | E41: 0.32 | F41: A | O41: Date: | AC41: Date:
C42: Cementitious Material | E42: 0.45 | F42: A | O42: Name of Breaker: | AC42: Name of Breaker:
C43: % Aggregate | F43: A | O43: Cylinder size: | AC43: Cylinder size:
C46: Date:
C47: Name of Mixer: | O47: Specimen | P47: Weight | Q47: Max Load | AC47: Specimen | AD47: Weight | AE47: Max Load
C49: Fiber Mix | E49: A | F49: 0.09259259259 | O49: 1 | AC49: 1
C51: Aggregates | I51: EXAMPLE
C52: Utelite | F52: 1.033780333 | O52: 2 | AC52: 2
C53: Size: 2-4 | F53: 0.1654048532 | I53: ←
C54: Size: 1-2 | F54: 0.2260532994 | O54: 3 | AC54: 3
C55: Size: 0.5-1 | F55: 0.1240536399
C56: Size: 0.25-0.5 | F56: 0.1874588336
C57: Size: 0.1-0.3 | F57: 0.234323542
C58: Size: 0.04-0.125 | F58: 0.1102699021
C60: Cementitious Materials
C61: Portland Cement | F61: 1.670138815
C62: Fly Ash | F62: 0.4175347039
C63: Metakaolin | F63: 0.4175347039
C65: Water | F65: 1.873466956
C67: Admixtures | F67: Amount (ml)
C68: Adva 140 M | F68: 16.78751302
C69: Eclipse Floor 200 | F69: 5.372004166
O72: Mix Design | R72: AACAA | V72: Observations/Improvements | AC72: Mix Design | AF72: LADHH | AJ72: Observations/Improvements
O73: Aggregate Distribution | R73: A | AC73: Aggregate Distribution | AF73: L
O74: w/c Ratio | Q74: 0.32 | R74: A | AC74: w/c Ratio | AE74: 0.32 | AF74: A
O75: % Aggregate | Q75: 0.55 | R75: C | AC75: % Aggregate | AE75: 0.6 | AF75: D
O76: Cementitious Material | R76: A | AC76: Cementitious Material | AF76: H
O79: Date: | AC79: Date:
O80: Name of Mixer: | AC80: Name of Mixer:
O82: Fiber Mix | Q82: A | R82: 0.01994175024 | AC82: Fiber Mix | AE82: H | AF82: 0.009232291779
O84: Aggregates | AC84: Aggregates
O85: Utelite | R85: 1.421447957 | AC85: Utelite | AF85: 0.8614836105
O86: Size: 2-4 | R86: 0.2804990636 | AC86: Size: 2-4 | AF86: 0.1954993473
O87: Size: 1-2 | R87: 0.1819453385 | AC87: Size: 1-2 | AF87: 0.1318644246
O88: Size: 0.5-1 | R88: 0.2175763007 | AC88: Size: 0.5-1 | AF88: 0.1343914432
O89: Size: 0.25-0.5 | R89: 0.1876311304 | AC89: Size: 0.25-0.5 | AF89: 0.1718372642
O90: Size: 0.1-0.3 | R90: 0.2319803066 | AC90: Size: 0.1-0.3 | AF90: 0.1757426565
O91: Size: 0.04-0.125 | R91: 0.1610974352 | AC91: Size: 0.04-0.125 | AF91: 0.09189158512
O93: Cementitious Materials | AC93: Cementitious Materials
O94: Portland Cement | R94: 1.766062344 | AC94: Portland Cement | AF94: 0.8330454879
O95: Fly Ash | R95: 1.031604671 | AC95: Fly Ash | AF95: 0.5474298921
O96: Metakaolin | Q96: 50%)below) | R96: 0 | AC96: Metakaolin | AE96: 50%)below) | AF96: 0
O98: Water | P98: 0.7 | Q98: 0.7045382142 | R98: 1.455553457 | V98: Total water used: | AC98: Water | AD98: 0.7 | AE98: 0.488376065 | AF98: 0.6837264909 | AJ98: Total water used:
P99: 0.1 | R99: 0.2079362082 | AD99: 0.1 | AF99: 0.09767521299
O101: Admixtures | R101: Amount (ml) | AC101: Admixtures | AF101: Amount (ml)
O102: Adva 555 M | R102: 2.707463507 | AC102: Adva 555 M | AF102: 1.553100992
O103: Eclipse Floor 200 | R103: 5.843446419 | AC103: Eclipse Floor 200 | AF103: 3.352016529
O106: Break Data | AC106: Break Data
O108: Date: | AC108: Date:
O109: Name of Breaker: | AC109: Name of Breaker:
O110: Cylinder size: | AC110: Cylinder size:
O114: Specimen | P114: Weight | Q114: Max Load | AC114: Specimen | AD114: Weight | AE114: Max Load
O116: 1 | AC116: 1
O119: 2 | AC119: 2
O121: 3 | AC121: 3

Sheet Mix 1 (hidden)
B2: Mixture ID: | D2: KADHF | I2: Design Proportions (Non SSD) | K2: Actual Batched Proportions for Design | M2: Yielded Proportions | P2: Cylinder Size | R2: Volume of Cylinder | S2: Amount of Cylinders | T2: Extra Mixing Material Factor | U2: Amount of Concrete Wanted (ft3) | V2: Divisible Factor
B3: YD | C3: Design Batch Size (ft3): | G3: 27
B4: Cementitious Materials | H4: SG | I4: Amount (lb/yd3) | J4: Volume (ft3) | K4: Amount (lb) | L4: Volume (ft3) | M4: Amount (lb/yd3) | N4: Volume (ft3) | P4: diameter (in) | Q4: height (in) | R4: ft3
B5: CM1 | C5: Portland Cement | H5: ='45% Agg.'!$H$5 -> 3.15 | I5: 249.5123027 | J5: =I5/H5/62.4 -> 1.269395109 | K5: =(H5*62.4*L5) -> 1.020658876 | L5: =J5/$V$5 -> 0.005192607226 | P5: ='45% Agg.'!P4 -> 3 | Q5: ='45% Agg.'!Q4 -> 6 | R5: =(P5^2*PI())/4*Q5/12^3 -> 0.02454369261 | S5: ='45% Agg.'!S4 -> 3 | T5: ='45% Agg.'!T4 -> 1.5 | U5: =R5*S5*T5 -> 0.1104466167 | V5: =27/U5 -> 244.4619926
B6: CM2 | C6: ='45% Agg.'!$C$6 -> Fly Ash | D6: ='45% Agg.'!$D$6 -> Class: F | E6: ='45% Agg.'!E6 -> 0 | F6: Amt: | G6: ='45% Agg.'!$G$6 -> 1.3 | H6: ='45% Agg.'!$H$6 -> 2.3 | I6: =IF(G6="","",H6*62.4*J6) -> 236.8386619 | J6: =G6*$J$5 -> 1.650213642 | K6: =IF(G6="","",H6*62.4*L6) -> 0.9688158858 | L6: =J6/$V$5 -> 0.006750389394
B7: CM3 | C7: ='45% Agg.'!$C$7 -> Graphene | F7: Amt: | G7: ='45% Agg.'!$G$7 -> 0.1 | H7: ='45% Agg.'!$H$7 -> 1 | I7: =IF(G7="","",H7*62.4*J7) -> 7.921025481 | J7: =G7*$J$5 -> 0.1269395109 | K7: =IF(G7="","",H7*62.4*L7) -> 0.03240186909 | L7: =J7/$V$5 -> 0.0005192607226
B8: CM4 | C8: ='45% Agg.'!$C$8 -> Slag | F8: Amt: | G8: ='45% Agg.'!$G$8 -> 1.4 | H8: ='45% Agg.'!$H$8 -> 0 | I8: =IF(G8="","",H8*62.4*J8) -> 0 | J8: =G8*$J$5 -> 1.777153153 | K8: =IF(G8="","",H8*62.4*L8) -> 0 | L8: =J8/$V$5 -> 0.007269650116 | P8: Designing Parameters
P9: Desired Volume | R9: 27
B10: Total Cementitious Materials: | I10: =SUM(I5:I9) -> 494.27199 | J10: =SUM(J5:J9) -> 4.823701415 | K10: =SUM(K5:K9) -> 2.021876631 | L10: =SUM(L5:L9) -> 0.01973190746 | P10: % Aggregate | R10: 0.5
B11: Fibers
B12: F1 | C12: Grace Fibers | H12: ='45% Agg.'!$H$12 -> 0.91 | I12: ='45% Agg.'!$I$12 -> 3.25 | J12: =IF(H12="","",I12/(H12*62.4)) -> 0.05723443223 | K12: =(H12*62.4*L12) -> 0.01994175024 | L12: ='45% Agg.'!L12 -> 0.0003511860778
B13: F2 | C13: Fiber 2 | H13: ='45% Agg.'!$H$13 -> 0 | I13: ='45% Agg.'!$I$13 -> 0 | J13: =IF(H13=0,"",I13/(H13*62.4)) ->  | P13: In looking in the mix printout sheet, it was mentioned that the % Aggregate is not a round number like those shown in the sheets. If a more presice aggregate amount is needed such as 57% rather than 55% or 60% then go to the sheet closest and on the bottom of the sheet is the highlighed aggregate amount. Change that amount to the amount desired and then change the amount on this sheet to match it.
B14: Total Fibers: | I14: =SUM(I12:I13) -> 3.25 | J14: =SUM(J12:J13) -> 0.05723443223
B15: Aggregates
B16: A1 | C16: ='45% Agg.'!$C$17 -> Utelite | E16: ='45% Agg.'!$E$17 -> 0.25 | F16: Abs: | G16: ='45% Agg.'!$G$17 -> 0 | H16: ='45% Agg.'!$H$17 -> 1.5 | I16: =IF(E16="","",H16*62.4*J16) -> 315.9 | J16: =IF(E16="","",E16*$J$24) -> 3.375 | K16: =IF(G16="","",H16*62.4*L16) -> 1.292225416 | L16: =J16/$V$5 -> 0.01380582709
B17: A2 | C17: ='45% Agg.'!$C$18 -> Size: 2-4 | E17: ='45% Agg.'!$E$18 -> 0.15 | F17: Abs: | G17: ='45% Agg.'!$G$18 -> 0.23 | H17: ='45% Agg.'!$H$18 -> 0.37 | I17: 46.7532 | J17: 2.025 | K17: 0.1912493615 | L17: 0.008283496255
B18: A3 | C18: ='45% Agg.'!$C$19 -> Size: 1-2 | E18: ='45% Agg.'!$E$19 -> 0.16 | F18: Abs: | G18: ='45% Agg.'!$G$19 -> 0.2 | H18: ='45% Agg.'!$H$19 -> 0.41 | I18: 55.26144 | J18: 2.16 | K18: 0.2260532994 | L18: 0.008835729338
B19: A4 | C19: ='45% Agg.'!$C$20 -> Size: 0.5-1 | E19: ='45% Agg.'!$E$20 -> 0.14 | F19: Abs: | G19: ='45% Agg.'!$G$20 -> 0.2 | H19: ='45% Agg.'!$H$20 -> 0.45 | I19: 53.0712 | J19: 1.89 | K19: 0.2170938698 | L19: 0.007731263171
B20: A5 | C20: ='45% Agg.'!$C$21 -> Size: 0.25-0.5 | E20: ='45% Agg.'!$E$21 -> 0.11 | F20: Abs: | G20: ='45% Agg.'!$G$21 -> 0.28 | H20: ='45% Agg.'!$H$21 -> 0.68 | I20: 63.01152 | J20: 1.485 | K20: 0.2577558963 | L20: 0.00607456392
B21: A6 | C21: ='45% Agg.'!$C$22 -> Size: 0.1-0.3 | E21: ='45% Agg.'!$E$22 -> 0.09 | F21: Abs: | G21: ='45% Agg.'!$G$22 -> 0.35 | H21: ='45% Agg.'!$H$22 -> 0.85 | I21: 64.4436 | J21: 1.215 | K21: 0.2636139848 | L21: 0.004970097753
B22: A7 | C22: ='45% Agg.'!$C$23 -> Size: 0.04-0.125 | E22: ='45% Agg.'!$E$23 -> 0.05 | F22: Abs: | G22: ='45% Agg.'!G23 -> 0.25 | H22: ='45% Agg.'!$H$23 -> 0.8 | I22: =IF(E22="","",H22*62.4*J22) -> 33.696 | J22: 0.675 | K22: 0.1378373777 | L22: 0.002761165418
B24: Total Aggregates: | I24: =SUM(I16:I23) -> 632.13696 | J24: =R10*R9 -> 13.5 | K24: =SUM(K16:K23) -> 2.585829205 | L24: =SUM(L16:L23) -> 0.05246214295
B25: Water
B26: W1 | C26: Water for CM Hydration (W1a + W1b) | H26: 1 | I26: =I10*I47 -> 148.281597 | J26: =IF(I26="","",I26/H26/27) -> 5.491911 | K26: =I26/$V$5 -> 0.6065629893 | L26: =J26/$V$5 -> 0.0224652959
C27: W1a. Water from Admixtures | I27: 0 | K27: =I27/$V$5 -> 0
C28: W1b. Additional Water | I28: =I47*I10 -> 148.281597 | K28: =I28/$V$5 -> 0.6065629893
B29: W2 | C29: Water for Aggregates, SSD | H29: 1 | I29: =G16*I16+G18*I18+G19*I19+G20*I20+G21*I21+G22*I22 -> 70.2890136 | K29: =I29/$V$5 -> 0.2875253239
B30: Total Water (W1 + W2): | I30: =I26+I29 -> 218.5706106 | J30: =J26 -> 5.491911 | K30: ='45% Agg.'!K32 -> 1759.528901 | L30: =SUM(L26:L29) -> 0.0224652959
B31: Solids Content of Latex, Dyes and Admixtures in Powder Form
B32: S1 | C32: Latex (if used)
B33: S2 | C33: Liquid Dye (if used)
B34: S3 | C34: Other Latex or Liquid Dye (if used)
B35: P1 | C35: Pigment 1 (Powder Form)
B36: Total Solids of Admixtures: | I36: =SUM(I32:I35) -> 0 | J36: =SUM(J32:J35) -> 0
B37: Admixtures (including Pigments in Liquid Form)
H38: % Solids | I38: Dosage (fl oz/cwt) | J38: ='45% Agg.'!J41 -> Total (ml) | K38: ='45% Agg.'!K41 -> Amount (ml) | L38: Water in Admixture (lb) | M38: Dosage (fl oz/cwt) | N38: Water in Admixture (lb/yd3)
J39: ='45% Agg.'!J42 -> 0 | K39: ='45% Agg.'!K42 -> 0
B40: Ad1 | C40: Water Reducers | G40: lb/gal | I40: ='45% Agg.'!$I$43 -> 1.39 | J40: =CONVERT((I40*$I$49/100),"oz","ml") -> 554.2195041 | K40: =J40/$V$5 -> 2.267098857
B41: Ad2 | C41: Shrinkage Reducers | G41: lb/gal | I41: ='45% Agg.'!$I$44 -> 3 | J41: =CONVERT((I41*$I$49/100),"oz","ml") -> 1196.157203 | K41: =J41/$V$5 -> 4.893019117
B42: Ad3 | G42: lb/gal | I42: 0 | J42: =CONVERT((I42*$I$49/100),"oz","ml") -> 0 | K42: =J42/$V$5 -> 0
B43: Ad4 | G43: lb/gal | I43: 0 | J43: 0 | K43: 0
B44: Water from Admixtures (W1a): | J44: =SUM(J40:J43) -> 1750.376707
B46: Cement-Cementitious Materials Ratio | I46: =I5/I10 -> 0.5048076923 | K46: =K5/K10 -> 0.5048076923
B47: Water-Cementitious Materials Ratio | I47: ='45% Agg.'!$I$51:$J$51 -> 0.3 | K47: =I47 -> 0.3
B48: Slump, Slump Flow, in. | I48: 3 +- 1 | K48: 3 +- 1
B49: M | C49: Mass of Concrete. lbs | I49: =SUM(I10,I14,I24,I30,I36) -> 1348.229561 | K49: =SUM(K10,K14,K24,K30,K36) -> 1764.136607
B50: V | C50: Absolute Volume of Concrete, ft3 | I50: =SUM(J36,J30,J24,J14,J10) -> 23.87284685 | K50: =SUM(L36,L30,L24,L14,L10) -> 0.09465934631
B51: T | C51: Theorectical Density, lb/ft3 = (M / V) | I51: =I49/I50 -> 56.47544129 | K51: =K49/K50 -> 18636.68698
B52: D | C52: Design Density, lb/ft3 = (M / 27) | I52: =I49/27 -> 49.93442817
B53: D | C53: Measured Density, lb/ft3 | K53: 69
B54: A | C54: Air Content, % = [(T - D) / T x 100%] | I54: =(I51-I52)/I51 -> 0.1158204871 | K54: =(K51-K52)/K51 -> 1
B55: Y | C55: Yield, ft3 = (M / D) | I55: =I49/I52 -> 27 | K55: =K49/K53 -> 25.5671972
B56: Ry | C56: Relative Yield = (Y / YD) | K56: =K55/K53 -> 0.3705390898

Sheet Mix 2 (hidden)
B2: Mixture ID: | D2: KADHF | I2: Design Proportions (Non SSD) | K2: Actual Batched Proportions for Design | M2: Yielded Proportions | P2: Cylinder Size | R2: Volume of Cylinder | S2: Amount of Cylinders | T2: Extra Mixing Material Factor | U2: Amount of Concrete Wanted (ft3) | V2: Divisible Factor
B3: YD | C3: Design Batch Size (ft3): | G3: 27
B4: Cementitious Materials | H4: SG | I4: Amount (lb/yd3) | J4: Volume (ft3) | K4: Amount (lb) | L4: Volume (ft3) | M4: Amount (lb/yd3) | N4: Volume (ft3) | P4: diameter (in) | Q4: height (in) | R4: ft3
B5: CM1 | C5: Portland Cement | H5: ='45% Agg.'!$H$5 -> 3.15 | I5: 221.6574992 | J5: =I5/H5/62.4 -> 1.127683655 | K5: =(H5*62.4*L5) -> 0.9067155872 | L5: =J5/$V$5 -> 0.004612920163 | P5: ='45% Agg.'!P4 -> 3 | Q5: ='45% Agg.'!Q4 -> 6 | R5: =(P5^2*PI())/4*Q5/12^3 -> 0.02454369261 | S5: ='45% Agg.'!S4 -> 3 | T5: ='45% Agg.'!T4 -> 1.5 | U5: =R5*S5*T5 -> 0.1104466167 | V5: =27/U5 -> 244.4619926
B6: CM2 | C6: ='45% Agg.'!$C$6 -> Fly Ash | D6: ='45% Agg.'!$D$6 -> Class: F | E6: ='45% Agg.'!E6 -> 0 | F6: Amt: | G6: ='45% Agg.'!$G$6 -> 1.3 | H6: ='45% Agg.'!$H$6 -> 2.3 | I6: =IF(G6="","",H6*62.4*J6) -> 210.3987056 | J6: =G6*$J$5 -> 1.465988751 | K6: =IF(G6="","",H6*62.4*L6) -> 0.8606601923 | L6: =J6/$V$5 -> 0.005996796212
B7: CM3 | C7: ='45% Agg.'!$C$7 -> Graphene | F7: Amt: | G7: ='45% Agg.'!$G$7 -> 0.1 | H7: ='45% Agg.'!$H$7 -> 1 | I7: =IF(G7="","",H7*62.4*J7) -> 7.036746005 | J7: =G7*$J$5 -> 0.1127683655 | K7: =IF(G7="","",H7*62.4*L7) -> 0.02878462182 | L7: =J7/$V$5 -> 0.0004612920163
B8: CM4 | C8: ='45% Agg.'!$C$8 -> Slag | F8: Amt: | G8: ='45% Agg.'!$G$8 -> 1.4 | H8: ='45% Agg.'!$H$8 -> 0 | I8: =IF(G8="","",H8*62.4*J8) -> 0 | J8: =G8*$J$5 -> 1.578757117 | K8: =IF(G8="","",H8*62.4*L8) -> 0 | L8: =J8/$V$5 -> 0.006458088228 | P8: Designing Parameters
B9: CM5 | F9: Amt: | G9: ='45% Agg.'!$G$8 -> 1.4 | H9: ='45% Agg.'!#REF! ->  | I9: =IF(G9="","",H9*62.4*J9) ->  | J9: =G9*$J$5 -> 1.578757117 | K9: =IF(G9="","",H9*62.4*L9) ->  | L9: =J9/$V$5 -> 0.006458088228 | P9: Desired Volume | R9: 27
B10: Total Cementitious Materials: | I10: =SUM(I5:I9) ->  | J10: =SUM(J5:J9) -> 5.863955004 | K10: =SUM(K5:K9) ->  | L10: =SUM(L5:L9) -> 0.02398718485 | P10: % Aggregate of Volume | R10: 0.45
B11: Fibers
B12: F1 | C12: Grace Fibers | H12: ='45% Agg.'!$H$12 -> 0.91 | I12: ='45% Agg.'!$I$12 -> 3.25 | J12: =IF(H12="","",I12/(H12*62.4)) -> 0.05723443223 | K12: =(H12*62.4*L12) -> 0.01994175024 | L12: ='45% Agg.'!L12 -> 0.0003511860778 | P12: In looking in the mix printout sheet, it was mentioned that the % Aggregate is not a round number like those shown in the sheets. If a more presice aggregate amount is needed such as 57% rather than 55% or 60% then go to the sheet closest and on the bottom of the sheet is the highlighed aggregate amount. Change that amount to the amount desired and then change the amount on this sheet to match it.
B13: F2 | C13: Fiber 2 | H13: ='45% Agg.'!$H$13 -> 0 | I13: ='45% Agg.'!$I$13 -> 0 | J13: =IF(H13=0,"",I13/(H13*62.4)) -> 
B14: Total Fibers: | I14: =SUM(I12:I13) -> 3.25 | J14: =SUM(J12:J13) -> 0.05723443223
B15: Aggregates
B16: A1 | C16: ='45% Agg.'!$C$17 -> Utelite | E16: ='45% Agg.'!$E$17 -> 0.25 | F16: Abs: | G16: ='45% Agg.'!$G$17 -> 0 | H16: ='45% Agg.'!$H$17 -> 1.5 | I16: =IF(E16="","",H16*62.4*J16) -> 284.31 | J16: =IF(E16="","",E16*$J$24) -> 3.0375 | K16: =IF(G16="","",H16*62.4*L16) -> 1.163002874 | L16: =J16/$V$5 -> 0.01242524438
B17: A2 | C17: ='45% Agg.'!$C$18 -> Size: 2-4 | E17: ='45% Agg.'!$E$18 -> 0.15 | F17: Abs: | G17: ='45% Agg.'!$G$18 -> 0.23 | H17: ='45% Agg.'!$H$18 -> 0.37 | I17: 42.07788 | J17: 1.8225 | K17: 0.1721244254 | L17: 0.007455146629
B18: A3 | C18: ='45% Agg.'!$C$19 -> Size: 1-2 | E18: ='45% Agg.'!$E$19 -> 0.16 | F18: Abs: | G18: ='45% Agg.'!$G$19 -> 0.2 | H18: ='45% Agg.'!$H$19 -> 0.41 | I18: 49.735296 | J18: 1.944 | K18: 0.2034479695 | L18: 0.007952156404
B19: A4 | C19: ='45% Agg.'!$C$20 -> Size: 0.5-1 | E19: ='45% Agg.'!$E$20 -> 0.14 | F19: Abs: | G19: ='45% Agg.'!$G$20 -> 0.2 | H19: ='45% Agg.'!$H$20 -> 0.45 | I19: 47.76408 | J19: 1.701 | K19: 0.1953844829 | L19: 0.006958136854
B20: A5 | C20: ='45% Agg.'!$C$21 -> Size: 0.25-0.5 | E20: ='45% Agg.'!$E$21 -> 0.11 | F20: Abs: | G20: ='45% Agg.'!$G$21 -> 0.28 | H20: ='45% Agg.'!$H$21 -> 0.68 | I20: 56.710368 | J20: 1.3365 | K20: 0.2319803066 | L20: 0.005467107528
B21: A6 | C21: ='45% Agg.'!$C$22 -> Size: 0.1-0.3 | E21: ='45% Agg.'!$E$22 -> 0.09 | F21: Abs: | G21: ='45% Agg.'!$G$22 -> 0.35 | H21: ='45% Agg.'!$H$22 -> 0.85 | I21: 57.99924 | J21: 1.0935 | K21: 0.2372525863 | L21: 0.004473087977
B22: A7 | C22: ='45% Agg.'!$C$23 -> Size: 0.04-0.125 | E22: ='45% Agg.'!$E$23 -> 0.05 | F22: Abs: | G22: ='45% Agg.'!G23 -> 0.25 | H22: ='45% Agg.'!$H$23 -> 0.8 | I22: =IF(E22="","",H22*62.4*J22) -> 30.3264 | J22: 0.6075 | K22: 0.1240536399 | L22: 0.002485048876
B23: A8 | C23: ='45% Agg.'!#REF! ->  | E23: ='45% Agg.'!#REF! ->  | F23: Abs: | G23: ='45% Agg.'!#REF! ->  | H23: ='45% Agg.'!#REF! ->  | I23: =IF(E23="","",H23*62.4*J23) -> 
B24: Total Aggregates: | I24: =SUM(I16:I23) ->  | J24: =R9*R10 -> 12.15 | K24: =SUM(K16:K23) ->  | L24: =SUM(L16:L23) -> 
B25: Water
B26: W1 | C26: Water for CM Hydration (W1a + W1b) | H26: 1 | I26: =I10*I47 ->  | J26: =IF(I26="","",I26/H26/27) ->  | K26: =I26/$V$5 ->  | L26: =J26/$V$5 -> 
C27: W1a. Water from Admixtures | I27: 0 | K27: =I27/$V$5 -> 0
C28: W1b. Additional Water | I28: =I47*I10 ->  | K28: =I28/$V$5 -> 
B29: W2 | C29: Water for Aggregates, SSD | H29: 1 | I29: =G16*I16+G18*I18+G19*I19+G20*I20+G21*I21+G22*I22 -> 63.26011224 | K29: =I29/$V$5 -> 0.2587727915
B30: Total Water (W1 + W2): | I30: =I26+I29 ->  | J30: =J26 ->  | K30: ='45% Agg.'!K32 -> 1759.528901 | L30: =SUM(L26:L29) -> 
B31: Solids Content of Latex, Dyes and Admixtures in Powder Form
B32: S1 | C32: Latex (if used)
B33: S2 | C33: Liquid Dye (if used)
B34: S3 | C34: Other Latex or Liquid Dye (if used)
B35: P1 | C35: Pigment 1 (Powder Form)
B36: Total Solids of Admixtures: | I36: =SUM(I32:I35) -> 0 | J36: =SUM(J32:J35) -> 0
B37: Admixtures (including Pigments in Liquid Form)
H38: % Solids | I38: Dosage (fl oz/cwt) | J38: ='45% Agg.'!J41 -> Total (ml) | K38: ='45% Agg.'!K41 -> Amount (ml) | L38: Water in Admixture (lb) | M38: Dosage (fl oz/cwt) | N38: Water in Admixture (lb/yd3)
J39: ='45% Agg.'!J42 -> 0 | K39: ='45% Agg.'!K42 -> 0
B40: Ad1 | C40: Water Reducers | G40: lb/gal | I40: ='45% Agg.'!$I$43 -> 1.39 | J40: =CONVERT((I40*$I$49/100),"oz","ml") ->  | K40: =J40/$V$5 -> 
B41: Ad2 | C41: Shrinkage Reducers | G41: lb/gal | I41: ='45% Agg.'!$I$44 -> 3 | J41: =CONVERT((I41*$I$49/100),"oz","ml") ->  | K41: =J41/$V$5 -> 
B42: Ad3 | G42: lb/gal | I42: 0 | J42: =CONVERT((I42*$I$49/100),"oz","ml") ->  | K42: =J42/$V$5 -> 
B43: Ad4 | G43: lb/gal | I43: 0
B44: Water from Admixtures (W1a): | J44: =SUM(J40:J43) ->  | R44: 29
R45: 0.6
B46: Cement-Cementitious Materials Ratio | I46: =I5/I10 ->  | K46: =K5/K10 -> 
B47: Water-Cementitious Materials Ratio | I47: ='45% Agg.'!$I$51:$J$51 -> 0.3 | K47: =I47 -> 0.3
B48: Slump, Slump Flow, in. | I48: 3 +- 1 | K48: 3 +- 1
B49: M | C49: Mass of Concrete. lbs | I49: =SUM(I10,I14,I24,I30,I36) ->  | K49: =SUM(K10,K14,K24,K30,K36) -> 
B50: V | C50: Absolute Volume of Concrete, ft3 | I50: =SUM(J36,J30,J24,J14,J10) ->  | K50: =SUM(L36,L30,L24,L14,L10) -> 
B51: T | C51: Theorectical Density, lb/ft3 = (M / V) | I51: =I49/I50 ->  | K51: =K49/K50 -> 
B52: D | C52: Design Density, lb/ft3 = (M / 27) | I52: =I49/27 -> 
B53: D | C53: Measured Density, lb/ft3 | K53: 69
B54: A | C54: Air Content, % = [(T - D) / T x 100%] | I54: =(I51-I52)/I51 ->  | K54: =(K51-K52)/K51 -> 
B55: Y | C55: Yield, ft3 = (M / D) | I55: =I49/I52 ->  | K55: =K49/K53 -> 
B56: Ry | C56: Relative Yield = (Y / YD) | K56: =K55/K53 -> 

Sheet Mix 3 (hidden)
B2: Mixture ID: | D2: KADHF | I2: Design Proportions (Non SSD) | K2: Actual Batched Proportions for Design | M2: Yielded Proportions | P2: Cylinder Size | R2: Volume of Cylinder | S2: Amount of Cylinders | T2: Extra Mixing Material Factor | U2: Amount of Concrete Wanted (ft3) | V2: Divisible Factor
B3: YD | C3: Design Batch Size (ft3): | G3: 27
B4: Cementitious Materials | H4: SG | I4: Amount (lb/yd3) | J4: Volume (ft3) | K4: Amount (lb) | L4: Volume (ft3) | M4: Amount (lb/yd3) | N4: Volume (ft3) | P4: diameter (in) | Q4: height (in) | R4: ft3
B5: CM1 | C5: Portland Cement | H5: ='45% Agg.'!$H$5 -> 3.15 | I5: 193.8026957 | J5: =I5/H5/62.4 -> 0.9859722002 | K5: =(H5*62.4*L5) -> 0.7927722981 | L5: =J5/$V$5 -> 0.0040332331 | P5: ='45% Agg.'!P4 -> 3 | Q5: ='45% Agg.'!Q4 -> 6 | R5: =(P5^2*PI())/4*Q5/12^3 -> 0.02454369261 | S5: ='45% Agg.'!S4 -> 3 | T5: ='45% Agg.'!T4 -> 1.5 | U5: =R5*S5*T5 -> 0.1104466167 | V5: =27/U5 -> 244.4619926
B6: CM2 | C6: ='45% Agg.'!$C$6 -> Fly Ash | D6: ='45% Agg.'!$D$6 -> Class: F | E6: ='45% Agg.'!E6 -> 0 | F6: Amt: | G6: ='45% Agg.'!$G$6 -> 1.3 | H6: ='45% Agg.'!$H$6 -> 2.3 | I6: =IF(G6="","",H6*62.4*J6) -> 183.9587492 | J6: =G6*$J$5 -> 1.28176386 | K6: =IF(G6="","",H6*62.4*L6) -> 0.7525044988 | L6: =J6/$V$5 -> 0.00524320303
B7: CM3 | C7: ='45% Agg.'!$C$7 -> Graphene | F7: Amt: | G7: ='45% Agg.'!$G$7 -> 0.1 | H7: ='45% Agg.'!$H$7 -> 1 | I7: =IF(G7="","",H7*62.4*J7) -> 6.152466529 | J7: =G7*$J$5 -> 0.09859722002 | K7: =IF(G7="","",H7*62.4*L7) -> 0.02516737454 | L7: =J7/$V$5 -> 0.00040332331
B8: CM4 | C8: ='45% Agg.'!$C$8 -> Slag | F8: Amt: | G8: ='45% Agg.'!$G$8 -> 1.4 | H8: ='45% Agg.'!$H$8 -> 0 | I8: =IF(G8="","",H8*62.4*J8) -> 0 | J8: =G8*$J$5 -> 1.38036108 | K8: =IF(G8="","",H8*62.4*L8) -> 0 | L8: =J8/$V$5 -> 0.00564652634 | P8: Designing Parameters
B9: CM5 | F9: Amt: | G9: ='45% Agg.'!$G$8 -> 1.4 | H9: ='45% Agg.'!#REF! ->  | I9: =IF(G9="","",H9*62.4*J9) ->  | J9: =G9*$J$5 -> 1.38036108 | K9: =IF(G9="","",H9*62.4*L9) ->  | L9: =J9/$V$5 -> 0.00564652634 | P9: Desired Volume | R9: 27
B10: Total Cementitious Materials: | I10: =SUM(I5:I9) ->  | J10: =SUM(J5:J9) -> 5.127055441 | K10: =SUM(K5:K9) ->  | L10: =SUM(L5:L9) -> 0.02097281212 | P10: % Aggregate | R10: 0.6
B11: Fibers
B12: F1 | C12: Grace Fibers | H12: ='45% Agg.'!$H$12 -> 0.91 | I12: ='45% Agg.'!$I$12 -> 3.25 | J12: =IF(H12="","",I12/(H12*62.4)) -> 0.05723443223 | K12: =(H12*62.4*L12) -> 0.01994175024 | L12: ='45% Agg.'!L12 -> 0.0003511860778 | P12: In looking in the mix printout sheet, it was mentioned that the % Aggregate is not a round number like those shown in the sheets. If a more presice aggregate amount is needed such as 57% rather than 55% or 60% then go to the sheet closest and on the bottom of the sheet is the highlighed aggregate amount. Change that amount to the amount desired and then change the amount on this sheet to match it.
B13: F2 | C13: Fiber 2 | H13: ='45% Agg.'!$H$13 -> 0 | I13: ='45% Agg.'!$I$13 -> 0 | J13: =IF(H13=0,"",I13/(H13*62.4)) -> 
B14: Total Fibers: | I14: =SUM(I12:I13) -> 3.25 | J14: =SUM(J12:J13) -> 0.05723443223
B15: Aggregates
B16: A1 | C16: ='45% Agg.'!$C$17 -> Utelite | E16: ='45% Agg.'!$E$17 -> 0.25 | F16: Abs: | G16: ='45% Agg.'!$G$17 -> 0 | H16: ='45% Agg.'!$H$17 -> 1.5 | I16: =IF(E16="","",H16*62.4*J16) -> 379.08 | J16: =IF(E16="","",E16*$J$24) -> 4.05 | K16: =IF(G16="","",H16*62.4*L16) -> 1.550670499 | L16: =J16/$V$5 -> 0.01656699251
B17: A2 | C17: ='45% Agg.'!$C$18 -> Size: 2-4 | E17: ='45% Agg.'!$E$18 -> 0.15 | F17: Abs: | G17: ='45% Agg.'!$G$18 -> 0.23 | H17: ='45% Agg.'!$H$18 -> 0.37 | I17: 56.10384 | J17: 2.43 | K17: 0.2294992338 | L17: 0.009940195505
B18: A3 | C18: ='45% Agg.'!$C$19 -> Size: 1-2 | E18: ='45% Agg.'!$E$19 -> 0.16 | F18: Abs: | G18: ='45% Agg.'!$G$19 -> 0.2 | H18: ='45% Agg.'!$H$19 -> 0.41 | I18: 66.313728 | J18: 2.592 | K18: 0.2712639593 | L18: 0.01060287521
B19: A4 | C19: ='45% Agg.'!$C$20 -> Size: 0.5-1 | E19: ='45% Agg.'!$E$20 -> 0.14 | F19: Abs: | G19: ='45% Agg.'!$G$20 -> 0.2 | H19: ='45% Agg.'!$H$20 -> 0.45 | I19: 63.68544 | J19: 2.268 | K19: 0.2605126438 | L19: 0.009277515805
B20: A5 | C20: ='45% Agg.'!$C$21 -> Size: 0.25-0.5 | E20: ='45% Agg.'!$E$21 -> 0.11 | F20: Abs: | G20: ='45% Agg.'!$G$21 -> 0.28 | H20: ='45% Agg.'!$H$21 -> 0.68 | I20: 75.613824 | J20: 1.782 | K20: 0.3093070755 | L20: 0.007289476704
B21: A6 | C21: ='45% Agg.'!$C$22 -> Size: 0.1-0.3 | E21: ='45% Agg.'!$E$22 -> 0.09 | F21: Abs: | G21: ='45% Agg.'!$G$22 -> 0.35 | H21: ='45% Agg.'!$H$22 -> 0.85 | I21: 77.33232 | J21: 1.458 | K21: 0.3163367818 | L21: 0.005964117303
B22: A7 | C22: ='45% Agg.'!$C$23 -> Size: 0.04-0.125 | E22: ='45% Agg.'!$E$23 -> 0.05 | F22: Abs: | G22: ='45% Agg.'!G23 -> 0.25 | H22: ='45% Agg.'!$H$23 -> 0.8 | I22: =IF(E22="","",H22*62.4*J22) -> 40.4352 | J22: 0.81 | K22: 0.1654048532 | L22: 0.003313398502
B23: A8 | C23: ='45% Agg.'!#REF! ->  | E23: ='45% Agg.'!#REF! ->  | F23: Abs: | G23: ='45% Agg.'!#REF! ->  | H23: ='45% Agg.'!#REF! ->  | I23: =IF(E23="","",H23*62.4*J23) -> 
B24: Total Aggregates: | I24: =SUM(I16:I23) ->  | J24: =R9*R10 -> 16.2 | K24: =SUM(K16:K23) ->  | L24: =SUM(L16:L23) -> 
B25: Water
B26: W1 | C26: Water for CM Hydration (W1a + W1b) | H26: 1 | I26: =I10*I47 ->  | J26: =IF(I26="","",I26/H26/27) ->  | K26: =I26/$V$5 ->  | L26: =J26/$V$5 -> 
C27: W1a. Water from Admixtures | I27: 0 | K27: =I27/$V$5 -> 0
C28: W1b. Additional Water | I28: =I47*I10 ->  | K28: =I28/$V$5 -> 
B29: W2 | C29: Water for Aggregates, SSD | H29: 1 | I29: =G16*I16+G18*I18+G19*I19+G20*I20+G21*I21+G22*I22 -> 84.34681632 | K29: =I29/$V$5 -> 0.3450303887
B30: Total Water (W1 + W2): | I30: =I26+I29 ->  | J30: =J26 ->  | K30: ='45% Agg.'!K32 -> 1759.528901 | L30: =SUM(L26:L29) -> 
B31: Solids Content of Latex, Dyes and Admixtures in Powder Form
B32: S1 | C32: Latex (if used)
B33: S2 | C33: Liquid Dye (if used)
B34: S3 | C34: Other Latex or Liquid Dye (if used)
B35: P1 | C35: Pigment 1 (Powder Form)
B36: Total Solids of Admixtures: | I36: =SUM(I32:I35) -> 0 | J36: =SUM(J32:J35) -> 0
B37: Admixtures (including Pigments in Liquid Form)
H38: % Solids | I38: Dosage (fl oz/cwt) | J38: ='45% Agg.'!J41 -> Total (ml) | K38: ='45% Agg.'!K41 -> Amount (ml) | L38: Water in Admixture (lb) | M38: Dosage (fl oz/cwt) | N38: Water in Admixture (lb/yd3)
J39: ='45% Agg.'!J42 -> 0 | K39: ='45% Agg.'!K42 -> 0
B40: Ad1 | C40: Water Reducers | G40: lb/gal | I40: ='45% Agg.'!$I$43 -> 1.39 | J40: =CONVERT((I40*$I$49/100),"oz","ml") ->  | K40: =J40/$V$5 -> 
B41: Ad2 | C41: Shrinkage Reducers | G41: lb/gal | I41: ='45% Agg.'!$I$44 -> 3 | J41: =CONVERT((I41*$I$49/100),"oz","ml") ->  | K41: =J41/$V$5 -> 
B42: Ad3 | G42: lb/gal | I42: 0 | J42: =CONVERT((I42*$I$49/100),"oz","ml") ->  | K42: =J42/$V$5 -> 
B43: Ad4 | G43: lb/gal | I43: 0
B44: Water from Admixtures (W1a): | J44: =SUM(J40:J43) ->  | R44: 30
R45: 0.65
B46: Cement-Cementitious Materials Ratio | I46: =I5/I10 ->  | K46: =K5/K10 -> 
B47: Water-Cementitious Materials Ratio | I47: ='45% Agg.'!$I$51:$J$51 -> 0.3 | K47: =I47 -> 0.3
B48: Slump, Slump Flow, in. | I48: 3 +- 1 | K48: 3 +- 1
B49: M | C49: Mass of Concrete. lbs | I49: =SUM(I10,I14,I24,I30,I36) ->  | K49: =SUM(K10,K14,K24,K30,K36) -> 
B50: V | C50: Absolute Volume of Concrete, ft3 | I50: =SUM(J36,J30,J24,J14,J10) ->  | K50: =SUM(L36,L30,L24,L14,L10) -> 
B51: T | C51: Theorectical Density, lb/ft3 = (M / V) | I51: =I49/I50 ->  | K51: =K49/K50 -> 
B52: D | C52: Design Density, lb/ft3 = (M / 27) | I52: =I49/27 -> 
B53: D | C53: Measured Density, lb/ft3 | K53: 69
B54: A | C54: Air Content, % = [(T - D) / T x 100%] | I54: =(I51-I52)/I51 ->  | K54: =(K51-K52)/K51 -> 
B55: Y | C55: Yield, ft3 = (M / D) | I55: =I49/I52 ->  | K55: =K49/K53 -> 
B56: Ry | C56: Relative Yield = (Y / YD) | K56: =K55/K53 -> 

Sheet Mix 4 (hidden)
B2: Mixture ID: | D2: KADHF | I2: Design Proportions (Non SSD) | K2: Actual Batched Proportions for Design | M2: Yielded Proportions | P2: Cylinder Size | R2: Volume of Cylinder | S2: Amount of Cylinders | T2: Extra Mixing Material Factor | U2: Amount of Concrete Wanted (ft3) | V2: Divisible Factor
B3: YD | C3: Design Batch Size (ft3): | G3: 27
B4: Cementitious Materials | H4: SG | I4: Amount (lb/yd3) | J4: Volume (ft3) | K4: Amount (lb) | L4: Volume (ft3) | M4: Amount (lb/yd3) | N4: Volume (ft3) | P4: diameter (in) | Q4: height (in) | R4: ft3
B5: CM1 | C5: Portland Cement | H5: ='45% Agg.'!$H$5 -> 3.15 | I5: 165.9478922 | J5: =I5/H5/62.4 -> 0.8442607457 | K5: =(H5*62.4*L5) -> 0.678829009 | L5: =J5/$V$5 -> 0.003453546037 | P5: ='45% Agg.'!P4 -> 3 | Q5: ='45% Agg.'!Q4 -> 6 | R5: =(P5^2*PI())/4*Q5/12^3 -> 0.02454369261 | S5: ='45% Agg.'!S4 -> 3 | T5: ='45% Agg.'!T4 -> 1.5 | U5: =R5*S5*T5 -> 0.1104466167 | V5: =27/U5 -> 244.4619926
B6: CM2 | C6: ='45% Agg.'!$C$6 -> Fly Ash | D6: ='45% Agg.'!$D$6 -> Class: F | E6: ='45% Agg.'!E6 -> 0 | F6: Amt: | G6: ='45% Agg.'!$G$6 -> 1.3 | H6: ='45% Agg.'!$H$6 -> 2.3 | I6: =IF(G6="","",H6*62.4*J6) -> 157.5187929 | J6: =G6*$J$5 -> 1.097538969 | K6: =IF(G6="","",H6*62.4*L6) -> 0.6443488054 | L6: =J6/$V$5 -> 0.004489609848
B7: CM3 | C7: ='45% Agg.'!$C$7 -> Graphene | F7: Amt: | G7: ='45% Agg.'!$G$7 -> 0.1 | H7: ='45% Agg.'!$H$7 -> 1 | I7: =IF(G7="","",H7*62.4*J7) -> 5.268187053 | J7: =G7*$J$5 -> 0.08442607457 | K7: =IF(G7="","",H7*62.4*L7) -> 0.02155012727 | L7: =J7/$V$5 -> 0.0003453546037
B8: CM4 | C8: ='45% Agg.'!$C$8 -> Slag | F8: Amt: | G8: ='45% Agg.'!$G$8 -> 1.4 | H8: ='45% Agg.'!$H$8 -> 0 | I8: =IF(G8="","",H8*62.4*J8) -> 0 | J8: =G8*$J$5 -> 1.181965044 | K8: =IF(G8="","",H8*62.4*L8) -> 0 | L8: =J8/$V$5 -> 0.004834964452 | P8: Designing Parameters
B9: CM5 | F9: Amt: | G9: ='45% Agg.'!$G$8 -> 1.4 | H9: ='45% Agg.'!#REF! ->  | I9: =IF(G9="","",H9*62.4*J9) ->  | J9: =G9*$J$5 -> 1.181965044 | K9: =IF(G9="","",H9*62.4*L9) ->  | L9: =J9/$V$5 -> 0.004834964452 | P9: Desired Volume | R9: 27
B10: Total Cementitious Materials: | I10: =SUM(I5:I9) ->  | J10: =SUM(J5:J9) -> 4.390155878 | K10: =SUM(K5:K9) ->  | L10: =SUM(L5:L9) -> 0.01795843939 | P10: % Aggregate | R10: 0.55
B11: Fibers
B12: F1 | C12: Grace Fibers | H12: ='45% Agg.'!$H$12 -> 0.91 | I12: ='45% Agg.'!$I$12 -> 3.25 | J12: =IF(H12="","",I12/(H12*62.4)) -> 0.05723443223 | K12: =(H12*62.4*L12) -> 0.01994175024 | L12: ='45% Agg.'!L12 -> 0.0003511860778 | P12: In looking in the mix printout sheet, it was mentioned that the % Aggregate is not a round number like those shown in the sheets. If a more presice aggregate amount is needed such as 57% rather than 55% or 60% then go to the sheet closest and on the bottom of the sheet is the highlighed aggregate amount. Change that amount to the amount desired and then change the amount on this sheet to match it.
B13: F2 | C13: Fiber 2 | H13: ='45% Agg.'!$H$13 -> 0 | I13: ='45% Agg.'!$I$13 -> 0 | J13: =IF(H13=0,"",I13/(H13*62.4)) -> 
B14: Total Fibers: | I14: =SUM(I12:I13) -> 3.25 | J14: =SUM(J12:J13) -> 0.05723443223
B15: Aggregates
B16: A1 | C16: ='45% Agg.'!$C$17 -> Utelite | E16: ='45% Agg.'!$E$17 -> 0.25 | F16: Abs: | G16: ='45% Agg.'!$G$17 -> 0 | H16: ='45% Agg.'!$H$17 -> 1.5 | I16: =IF(E16="","",H16*62.4*J16) -> 347.49 | J16: =IF(E16="","",E16*$J$24) -> 3.7125 | K16: =IF(G16="","",H16*62.4*L16) -> 1.421447957 | L16: =J16/$V$5 -> 0.0151864098
B17: A2 | C17: ='45% Agg.'!$C$18 -> Size: 2-4 | E17: ='45% Agg.'!$E$18 -> 0.15 | F17: Abs: | G17: ='45% Agg.'!$G$18 -> 0.23 | H17: ='45% Agg.'!$H$18 -> 0.37 | I17: 51.42852 | J17: 2.2275 | K17: 0.2103742977 | L17: 0.00911184588
B18: A3 | C18: ='45% Agg.'!$C$19 -> Size: 1-2 | E18: ='45% Agg.'!$E$19 -> 0.16 | F18: Abs: | G18: ='45% Agg.'!$G$19 -> 0.2 | H18: ='45% Agg.'!$H$19 -> 0.41 | I18: 60.787584 | J18: 2.376 | K18: 0.2486586293 | L18: 0.009719302272
B19: A4 | C19: ='45% Agg.'!$C$20 -> Size: 0.5-1 | E19: ='45% Agg.'!$E$20 -> 0.14 | F19: Abs: | G19: ='45% Agg.'!$G$20 -> 0.2 | H19: ='45% Agg.'!$H$20 -> 0.45 | I19: 58.37832 | J19: 2.079 | K19: 0.2388032568 | L19: 0.008504389488
B20: A5 | C20: ='45% Agg.'!$C$21 -> Size: 0.25-0.5 | E20: ='45% Agg.'!$E$21 -> 0.11 | F20: Abs: | G20: ='45% Agg.'!$G$21 -> 0.28 | H20: ='45% Agg.'!$H$21 -> 0.68 | I20: 69.312672 | J20: 1.6335 | K20: 0.2835314859 | L20: 0.006682020312
B21: A6 | C21: ='45% Agg.'!$C$22 -> Size: 0.1-0.3 | E21: ='45% Agg.'!$E$22 -> 0.09 | F21: Abs: | G21: ='45% Agg.'!$G$22 -> 0.35 | H21: ='45% Agg.'!$H$22 -> 0.85 | I21: 70.88796 | J21: 1.3365 | K21: 0.2899753833 | L21: 0.005467107528
B22: A7 | C22: ='45% Agg.'!$C$23 -> Size: 0.04-0.125 | E22: ='45% Agg.'!$E$23 -> 0.05 | F22: Abs: | G22: ='45% Agg.'!G23 -> 0.25 | H22: ='45% Agg.'!$H$23 -> 0.8 | I22: =IF(E22="","",H22*62.4*J22) -> 37.0656 | J22: 0.7425 | K22: 0.1516211154 | L22: 0.00303728196
B23: A8 | C23: ='45% Agg.'!#REF! ->  | E23: ='45% Agg.'!#REF! ->  | F23: Abs: | G23: ='45% Agg.'!#REF! ->  | H23: ='45% Agg.'!#REF! ->  | I23: =IF(E23="","",H23*62.4*J23) -> 
B24: Total Aggregates: | I24: =SUM(I16:I23) ->  | J24: =R9*R10 -> 14.85 | K24: =SUM(K16:K23) ->  | L24: =SUM(L16:L23) -> 
B25: Water
B26: W1 | C26: Water for CM Hydration (W1a + W1b) | H26: 1 | I26: =I10*I47 ->  | J26: =IF(I26="","",I26/H26/27) ->  | K26: =I26/$V$5 ->  | L26: =J26/$V$5 -> 
C27: W1a. Water from Admixtures | I27: 0 | K27: =I27/$V$5 -> 0
C28: W1b. Additional Water | I28: =I47*I10 ->  | K28: =I28/$V$5 -> 
B29: W2 | C29: Water for Aggregates, SSD | H29: 1 | I29: =G16*I16+G18*I18+G19*I19+G20*I20+G21*I21+G22*I22 -> 77.31791496 | K29: =I29/$V$5 -> 0.3162778563
B30: Total Water (W1 + W2): | I30: =I26+I29 ->  | J30: =J26 ->  | K30: ='45% Agg.'!K32 -> 1759.528901 | L30: =SUM(L26:L29) -> 
B31: Solids Content of Latex, Dyes and Admixtures in Powder Form
B32: S1 | C32: Latex (if used)
B33: S2 | C33: Liquid Dye (if used)
B34: S3 | C34: Other Latex or Liquid Dye (if used)
B35: P1 | C35: Pigment 1 (Powder Form)
B36: Total Solids of Admixtures: | I36: =SUM(I32:I35) -> 0 | J36: =SUM(J32:J35) -> 0
B37: Admixtures (including Pigments in Liquid Form)
H38: % Solids | I38: Dosage (fl oz/cwt) | J38: ='45% Agg.'!J41 -> Total (ml) | K38: ='45% Agg.'!K41 -> Amount (ml) | L38: Water in Admixture (lb) | M38: Dosage (fl oz/cwt) | N38: Water in Admixture (lb/yd3)
J39: ='45% Agg.'!J42 -> 0 | K39: ='45% Agg.'!K42 -> 0
B40: Ad1 | C40: Water Reducers | G40: lb/gal | I40: ='45% Agg.'!$I$43 -> 1.39 | J40: =CONVERT((I40*$I$49/100),"oz","ml") ->  | K40: =J40/$V$5 -> 
B41: Ad2 | C41: Shrinkage Reducers | G41: lb/gal | I41: ='45% Agg.'!$I$44 -> 3 | J41: =CONVERT((I41*$I$49/100),"oz","ml") ->  | K41: =J41/$V$5 -> 
B42: Ad3 | G42: lb/gal | I42: 0 | J42: =CONVERT((I42*$I$49/100),"oz","ml") ->  | K42: =J42/$V$5 -> 
B43: Ad4 | G43: lb/gal | I43: 0
B44: Water from Admixtures (W1a): | J44: =SUM(J40:J43) ->  | R44: 31
R45: 0.7
B46: Cement-Cementitious Materials Ratio | I46: =I5/I10 ->  | K46: =K5/K10 -> 
B47: Water-Cementitious Materials Ratio | I47: ='45% Agg.'!$I$51:$J$51 -> 0.3 | K47: =I47 -> 0.3
B48: Slump, Slump Flow, in. | I48: 3 +- 1 | K48: 3 +- 1
B49: M | C49: Mass of Concrete. lbs | I49: =SUM(I10,I14,I24,I30,I36) ->  | K49: =SUM(K10,K14,K24,K30,K36) -> 
B50: V | C50: Absolute Volume of Concrete, ft3 | I50: =SUM(J36,J30,J24,J14,J10) ->  | K50: =SUM(L36,L30,L24,L14,L10) -> 
B51: T | C51: Theorectical Density, lb/ft3 = (M / V) | I51: =I49/I50 ->  | K51: =K49/K50 -> 
B52: D | C52: Design Density, lb/ft3 = (M / 27) | I52: =I49/27 -> 
B53: D | C53: Measured Density, lb/ft3 | K53: 69
B54: A | C54: Air Content, % = [(T - D) / T x 100%] | I54: =(I51-I52)/I51 ->  | K54: =(K51-K52)/K51 -> 
B55: Y | C55: Yield, ft3 = (M / D) | I55: =I49/I52 ->  | K55: =K49/K53 -> 
B56: Ry | C56: Relative Yield = (Y / YD) | K56: =K55/K53 -> 

Sheet Pour Day (hidden)
B2: Date Cast: | H2: Mix Design | K2: =K3&K4&K5&K6&K7 -> KADHF | M2: Instructions
B3: Beginning Cast Time: | H3: Aggregate Distribution | K3: K | M3: This sheet is for finding the the toatl amount of concrete needed for the canoe as well as finding the amount of material for each bucket once an appropriate mix design is determined.
B4: Time of Cast Completion: | H4: w/c Ratio | J4: =IF(J5="","",'45% Agg.'!I51) -> 0.3 | K4: A
B5: Reinforcement Used: | H5: % Aggregate | J5: 0.6 | K5: D
B6: Curing Methods: | H6: Cementitious Material | K6: H | M6: Step 1. | N6: Detemine the correct mix design and fill it in accordingly.
H7: Fiber | K7: F
M8: Step 2. | N8: Determine the surface area and thickness of the canoe and fill it in accordingly.
B9: General Information
B10: Canoe Parameters | M10: Step 3. | N10: Review the mix design in the "45% Agg" sheet. Make sure that the mix design specified is the mix design in that sheet. To be sure, press the "Cement Content vs. Volume" button.
B11: Surface Area (ft2)* | E11: 60 | G11: *Must be determined before
B12: Thickness (in)** | E12: 1 | G12: *Must be determined before
N13: *If these steps are followed correctly, the rest of the sheet should fill out automatically.
B14: Concrete Needed (ft3) | E14: =E11*E12/12 -> 5
B15: Extra Material Factor | E15: 1.5 | M15: Step 4. | N15: Print off this sheet in a hard copy form and in a pdf format to record the mix design used.
B16: Factored Concrete Needed (ft3) | E16: =E14*E15 -> 7.5
M17: Step 5. | N17: Print off mixing instructions and mixes for when the concrete canoe is cast.
B18: Bucket Volume (gal) | E18: 5 | G18: *Buckets should only be filled up to about halfway for workability and mixing, however, the amount of material that is mixed can be changed in the amounf of bucket filled section
B19: Bucket Volume (ft3) | E19: =CONVERT(E18,"gal","ft^3") -> 0.6684027778 | M19: This design page is for those who are overseeing the mix design process on pour day.
B20: Amount of bucket filled*** | E20: 0.5
B21: Usable Bucket Volume (ft3) | E21: =E19*E20 -> 0.3342013889 | M21: Make sure of the following during the casting of the canoe:
B23: Number of Buckets needed | E23: =E16/E21 -> 22.44155844 | M23: - | N23: To record the time of beginning and ending of casting the canoe.
B24: Round up to nearest whole # | E24: =MROUND(E23,10) -> 20 | M24: - | N24: Those mixing are following instructions to avoid injury
M25: - | N25: Those pouring the canoe to keep it within 2 inches and to not overwork the concrete
B26: Concrete Materials | M26: - | N26: The area is clean
B27: Material | E27: SG | G27: Amount for 1 yd3 (lbs) | I27: Amount for Canoe (lbs) | K27: Amount per bucket | M27: - | N27: After the canoe is cast, that the area and tools are clean and placed where they need to be to avoid any confusion for next year's concrete canoe team and for the professors that use the lab.
B28: Aggregate
B29: Utelite | E29: =IF($J$5='45% Agg.'!$Z$4,'45% Agg.'!J29,IF($J$5='Mix 1'!$R$10,'Mix 1'!H16,IF($J$5='Mix 2'!$R$10,'Mix 2'!H15,IF($J$5='Mix 3'!$R$10,'Mix 3'!H15,IF($J$5='Mix 4'!$R$10,'Mix 4'!H15,""))))) -> 0 | G29: =IF('Pour Day'!$J$5='45% Agg.'!$Z$4,'45% Agg.'!$I$17,IF('Pour Day'!$J$5='Mix 1'!$R$10,'Mix 1'!$I$16,IF('Pour Day'!$J$5='Mix 2'!$R$10,'Mix 2'!$I$15,IF('Pour Day'!$J$5='Mix 3'!$R$10,'Mix 3'!$I$15,IF('Pour Day'!$J$5='Mix 4'!$R$10,'Mix 4'!$I$15,""))))) -> 0 | I29: =G29/27*$E$16 -> 0 | K29: =I29/$E$24 -> 0
B30: Poraver Size: 2-4 | E30: =IF($J$5='45% Agg.'!$Z$4,'45% Agg.'!J30,IF($J$5='Mix 1'!$R$10,'Mix 1'!H17,IF($J$5='Mix 2'!$R$10,'Mix 2'!H16,IF($J$5='Mix 3'!$R$10,'Mix 3'!H16,IF($J$5='Mix 4'!$R$10,'Mix 4'!H16,""))))) -> 1.5 | G30: =IF($J$5='45% Agg.'!$Z$4,'45% Agg.'!I18,IF($J$5='Mix 1'!$R$10,'Mix 1'!I17,IF($J$5='Mix 2'!$R$10,'Mix 2'!I16,IF($J$5='Mix 3'!$R$10,'Mix 3'!I16,IF($J$5='Mix 4'!$R$10,'Mix 4'!I16,""))))) -> 379.08 | I30: 105.3 | K30: =I30/$E$24 -> 5.265
B31: Poraver Size: 1-2 | E31: =IF($J$5='45% Agg.'!$Z$4,'45% Agg.'!J32,IF($J$5='Mix 1'!$R$10,'Mix 1'!H18,IF($J$5='Mix 2'!$R$10,'Mix 2'!H17,IF($J$5='Mix 3'!$R$10,'Mix 3'!H17,IF($J$5='Mix 4'!$R$10,'Mix 4'!H17,""))))) -> 0.37 | G31: =IF($J$5='45% Agg.'!$Z$4,'45% Agg.'!I19,IF($J$5='Mix 1'!$R$10,'Mix 1'!I18,IF($J$5='Mix 2'!$R$10,'Mix 2'!I17,IF($J$5='Mix 3'!$R$10,'Mix 3'!I17,IF($J$5='Mix 4'!$R$10,'Mix 4'!I17,""))))) -> 56.10384 | I31: 15.5844 | K31: 0.77922
B32: Poraver Size: 0.5-1 | E32: =IF($J$5='45% Agg.'!$Z$4,'45% Agg.'!J33,IF($J$5='Mix 1'!$R$10,'Mix 1'!H19,IF($J$5='Mix 2'!$R$10,'Mix 2'!H18,IF($J$5='Mix 3'!$R$10,'Mix 3'!H18,IF($J$5='Mix 4'!$R$10,'Mix 4'!H18,""))))) -> 0.41 | G32: =IF($J$5='45% Agg.'!$Z$4,'45% Agg.'!I20,IF($J$5='Mix 1'!$R$10,'Mix 1'!I19,IF($J$5='Mix 2'!$R$10,'Mix 2'!I18,IF($J$5='Mix 3'!$R$10,'Mix 3'!I18,IF($J$5='Mix 4'!$R$10,'Mix 4'!I18,""))))) -> 66.313728 | I32: 18.42048 | K32: 0.921024
B33: Poraver Size: 0.25-0.5 | E33: =IF($J$5='45% Agg.'!$Z$4,'45% Agg.'!J34,IF($J$5='Mix 1'!$R$10,'Mix 1'!H20,IF($J$5='Mix 2'!$R$10,'Mix 2'!H19,IF($J$5='Mix 3'!$R$10,'Mix 3'!H19,IF($J$5='Mix 4'!$R$10,'Mix 4'!H19,""))))) -> 0.45 | G33: =IF($J$5='45% Agg.'!$Z$4,'45% Agg.'!I21,IF($J$5='Mix 1'!$R$10,'Mix 1'!I20,IF($J$5='Mix 2'!$R$10,'Mix 2'!I19,IF($J$5='Mix 3'!$R$10,'Mix 3'!I19,IF($J$5='Mix 4'!$R$10,'Mix 4'!I19,""))))) -> 63.68544 | I33: 17.6904 | K33: 0.88452
B34: Poraver Size: 0.1-0.3 | E34: =IF($J$5='45% Agg.'!$Z$4,'45% Agg.'!J35,IF($J$5='Mix 1'!$R$10,'Mix 1'!H21,IF($J$5='Mix 2'!$R$10,'Mix 2'!H20,IF($J$5='Mix 3'!$R$10,'Mix 3'!H20,IF($J$5='Mix 4'!$R$10,'Mix 4'!H20,""))))) -> 0.68 | G34: =IF($J$5='45% Agg.'!$Z$4,'45% Agg.'!I22,IF($J$5='Mix 1'!$R$10,'Mix 1'!I21,IF($J$5='Mix 2'!$R$10,'Mix 2'!I20,IF($J$5='Mix 3'!$R$10,'Mix 3'!I20,IF($J$5='Mix 4'!$R$10,'Mix 4'!I20,""))))) -> 75.613824 | I34: 21.00384 | K34: 1.050192
B35: Poraver Size: 0.04-0.125 | E35: =IF($J$5='45% Agg.'!$Z$4,'45% Agg.'!J36,IF($J$5='Mix 1'!$R$10,'Mix 1'!H22,IF($J$5='Mix 2'!$R$10,'Mix 2'!H21,IF($J$5='Mix 3'!$R$10,'Mix 3'!H21,IF($J$5='Mix 4'!$R$10,'Mix 4'!H21,""))))) -> 0.85 | G35: =IF($J$5='45% Agg.'!$Z$4,'45% Agg.'!I23,IF($J$5='Mix 1'!$R$10,'Mix 1'!I22,IF($J$5='Mix 2'!$R$10,'Mix 2'!I21,IF($J$5='Mix 3'!$R$10,'Mix 3'!I21,IF($J$5='Mix 4'!$R$10,'Mix 4'!I21,""))))) -> 77.33232 | I35: 21.4812 | K35: 1.07406
B37: Fibers
B38: Grace Fibers | E38: =IF($J$5='45% Agg.'!$Z$4,'45% Agg.'!H12,IF($J$5='Mix 1'!$R$10,'Mix 1'!H12,IF($J$5='Mix 2'!$R$10,'Mix 2'!H11,IF($J$5='Mix 3'!$R$10,'Mix 3'!H11,IF($J$5='Mix 4'!$R$10,'Mix 4'!H11,""))))) -> 0 | G38: =IF($J$5='45% Agg.'!$Z$4,'45% Agg.'!I12,IF($J$5='Mix 1'!$R$10,'Mix 1'!I12,IF($J$5='Mix 2'!$R$10,'Mix 2'!I11,IF($J$5='Mix 3'!$R$10,'Mix 3'!I11,IF($J$5='Mix 4'!$R$10,'Mix 4'!I11,""))))) -> 0 | I38: =G38/27*$E$16 -> 0 | K38: =I38/$E$24 -> 0
B40: Cementitious Materials
B41: Cement | E41: =IF($J$5='45% Agg.'!$Z$4,'45% Agg.'!H5,IF($J$5='Mix 1'!$R$10,'Mix 1'!H5,IF($J$5='Mix 2'!$R$10,'Mix 2'!H5,IF($J$5='Mix 3'!$R$10,'Mix 3'!H5,IF($J$5='Mix 4'!$R$10,'Mix 4'!H5,""))))) -> 3.15 | G41: =IF($J$5='45% Agg.'!$Z$4,'45% Agg.'!I5,IF($J$5='Mix 1'!$R$10,'Mix 1'!I5,IF($J$5='Mix 2'!$R$10,'Mix 2'!I5,IF($J$5='Mix 3'!$R$10,'Mix 3'!I5,IF($J$5='Mix 4'!$R$10,'Mix 4'!I5,""))))) -> 193.8026957 | I41: =G41/27*$E$16 -> 53.83408213 | K41: =I41/$E$24 -> 2.691704106 | M41: 5.638 | N41: =K41+(K42-M42) -> 2.913686735 | O41: 5.638 | P41: 5.637640869 | Q41: =P41/(P41+3) -> 0.6526829437
B42: Fly Ash | E42: =IF($J$5='45% Agg.'!$Z$4,'45% Agg.'!H6,IF($J$5='Mix 1'!$R$10,'Mix 1'!H6,IF($J$5='Mix 2'!$R$10,'Mix 2'!H6,IF($J$5='Mix 3'!$R$10,'Mix 3'!H6,IF($J$5='Mix 4'!$R$10,'Mix 4'!H6,""))))) -> 2.3 | G42: =IF($J$5='45% Agg.'!$Z$4,'45% Agg.'!I6,IF($J$5='Mix 1'!$R$10,'Mix 1'!I6,IF($J$5='Mix 2'!$R$10,'Mix 2'!I6,IF($J$5='Mix 3'!$R$10,'Mix 3'!I6,IF($J$5='Mix 4'!$R$10,'Mix 4'!I6,""))))) -> 183.9587492 | I42: =G42/27*$E$16 -> 51.09965256 | K42: =I42/$E$24 -> 2.554982628 | M42: 2.333 | N42: =M42/K42 -> 0.9131177545 | O42: 2.333 | P42: 0.7381109609
B43: Metakaolin | E43: =IF($J$5='45% Agg.'!$Z$4,'45% Agg.'!H7,IF($J$5='Mix 1'!$R$10,'Mix 1'!H7,IF($J$5='Mix 2'!$R$10,'Mix 2'!H7,IF($J$5='Mix 3'!$R$10,'Mix 3'!H7,IF($J$5='Mix 4'!$R$10,'Mix 4'!H7,""))))) -> 1 | G43: =IF($J$5='45% Agg.'!$Z$4,'45% Agg.'!I7,IF($J$5='Mix 1'!$R$10,'Mix 1'!I7,IF($J$5='Mix 2'!$R$10,'Mix 2'!I7,IF($J$5='Mix 3'!$R$10,'Mix 3'!I7,IF($J$5='Mix 4'!$R$10,'Mix 4'!I7,""))))) -> 6.152466529 | I43: =G43/27*$E$16 -> 1.70901848 | K43: =I43/$E$24 -> 0.08545092402 | O43: =O42/O41 -> 0.4137992196 | R43: =K41/(K41+K42) -> 0.513029316
B44: Silica Fume | E44: =IF($J$5='45% Agg.'!$Z$4,'45% Agg.'!H8,IF($J$5='Mix 1'!$R$10,'Mix 1'!H8,IF($J$5='Mix 2'!$R$10,'Mix 2'!H8,IF($J$5='Mix 3'!$R$10,'Mix 3'!H8,IF($J$5='Mix 4'!$R$10,'Mix 4'!H8,""))))) -> 0 | G44: =IF($J$5='45% Agg.'!$Z$4,'45% Agg.'!I8,IF($J$5='Mix 1'!$R$10,'Mix 1'!I8,IF($J$5='Mix 2'!$R$10,'Mix 2'!I8,IF($J$5='Mix 3'!$R$10,'Mix 3'!I8,IF($J$5='Mix 4'!$R$10,'Mix 4'!I8,""))))) -> 0 | I44: =G44/27*$E$16 -> 0 | K44: =I44/$E$24 -> 0 | R44: =K42/(K42+K41) -> 0.486970684
B46: Water | M46: =E41/62.4/P41 -> 0.008954236427
B47: 0.7 | E47: 1 | G47: =IF($J$5='45% Agg.'!$Z$4,'45% Agg.'!I32,IF($J$5='Mix 1'!$R$10,'Mix 1'!I30,IF($J$5='Mix 2'!$R$10,'Mix 2'!I28,IF($J$5='Mix 3'!$R$10,'Mix 3'!I28,IF($J$5='Mix 4'!$R$10,'Mix 4'!I28,"")))))*B47 ->  | I47: =G47/27*$E$16 ->  | K47: =I47/$E$24 ->  | M47: =3.665/62.4/E42 -> 0.02553651059 | N47: =M47/M46 -> 2.851891482
B48: 0.1 | E48: 1 | G48: =IF($J$5='45% Agg.'!$Z$4,'45% Agg.'!I32,IF($J$5='Mix 1'!$R$10,'Mix 1'!I30,IF($J$5='Mix 2'!$R$10,'Mix 2'!I28,IF($J$5='Mix 3'!$R$10,'Mix 3'!I28,IF($J$5='Mix 4'!$R$10,'Mix 4'!I28,"")))))*B48 ->  | I48: =G48/27*$E$16 ->  | K48: =I48/$E$24 -> 
B50: Admixtures | G50: Amount (ml) | I50: Amount (ml) | K50: Amount (ml)
B51: Adva 140 M | G51: =IF($J$5='45% Agg.'!$Z$4,'45% Agg.'!J43,IF($J$5='Mix 1'!$R$10,'Mix 1'!J40,IF($J$5='Mix 2'!$R$10,'Mix 2'!J38,IF($J$5='Mix 3'!$R$10,'Mix 3'!J38,IF($J$5='Mix 4'!$R$10,'Mix 4'!J38,""))))) -> Total (ml) | I51: =G51/27*$E$16 ->  | K51: =I51/$E$24 -> 
B52: Eclipse Floor 200 | G52: =IF($J$5='45% Agg.'!$Z$4,'45% Agg.'!J44,IF($J$5='Mix 1'!$R$10,'Mix 1'!J41,IF($J$5='Mix 2'!$R$10,'Mix 2'!J39,IF($J$5='Mix 3'!$R$10,'Mix 3'!J39,IF($J$5='Mix 4'!$R$10,'Mix 4'!J39,""))))) -> 0 | I52: =G52/27*$E$16 -> 0 | K52: =I52/$E$24 -> 0
I55: =SUM(I29:I48) ->  | K55: =K29*20 -> 0 | M55: =SUM(K29:K48)*20 -> 
K56: =K30*20 -> 105.3
K57: =K31*20 -> 15.5844
K58: 18.42048
K59: 17.6904
K60: 21.00384
K61: 21.4812
K62: 0
K63: 0
K64: 0
K65: 0
K66: 0
K67: 53.83408213
K68: 51.09965256
K69: 1.70901848
K70: 0
K71: 0
K72: 0
B82: 13313
B83: =B82-5000 -> 8313
B84: =B83/144 -> 57.72916667

Sheet Pour Day Printoffs (hidden)
B2: Pour Day Printoff Sheets | AA2: Instructions
AA3: These printoffs are for the use of those mixing the material for the concrete canoe on the day the concrete is cast. Multiple printoffs can be printed so that multiple mixing stations can be set up. After each material is weighed out and added, make sure that a check mark is put in the corresponding area allocated for that mix. After an the Mix 1 is made, mixed, and used in the casting of the canoe, start on Mix 2. Make sure to have those helping, write there names down. Good Luck
B4: Name of Mixers
B6: Date | E6: 2017-02-25
B8: Mix Design | D8: ='Pour Day'!K2 -> KADHF
B11: Material | E11: Amount Per Mix (lbs) | F11: Amount per Machine | G11: Mix Number
B12: Aggregate | G12: 1 | H12: 2 | I12: 3 | J12: 4 | K12: 5 | L12: 6 | M12: 7 | N12: 8 | O12: 9 | P12: 10 | Q12: 11 | R12: 12 | S12: 13 | T12: 14 | U12: 15 | V12: 16 | W12: 17 | X12: 18
B13: Utelite | E13: ='Pour Day'!K29 -> 0 | F13: =E13*2 -> 0
B14: Poraver Size: 2-4 | E14: ='Pour Day'!K30 -> 5.265 | F14: =E14*2 -> 10.53 | AZ14: =SUM(E13:E19,E22,E25:E27,E30:E32) -> 
B15: Poraver Size: 1-2 | E15: ='Pour Day'!K31 -> 0.77922 | F15: 1.55844
B16: Poraver Size: 0.5-1 | E16: ='Pour Day'!K32 -> 0.921024 | F16: 1.842048
B17: Poraver Size: 0.25-0.5 | E17: ='Pour Day'!K33 -> 0.88452 | F17: 1.76904 | AZ17: 1.350648
B18: Poraver Size: 0.1-0.3 | E18: ='Pour Day'!K34 -> 1.050192 | F18: 2.100384 | AZ18: 0.86346
B19: Poraver Size: 0.04-0.125 | E19: ='Pour Day'!K35 -> 1.07406 | F19: 2.14812 | AZ19: 1.07406
AZ20: 1.050192
B21: Fibers | AZ21: 1.07406
B22: Grace Fibers | E22: ='Pour Day'!K38 -> 0 | F22: =E22*2 -> 0 | AZ22: 0.5616
B24: Cementitious Materials
B25: Cement | E25: ='Pour Day'!K41 -> 2.691704106 | F25: =E25*2 -> 5.383408213 | AZ25: 0.04166666667
B26: Fly Ash | E26: ='Pour Day'!K42 -> 2.554982628 | F26: =E26*2 -> 5.109965256
B27: Silica Fume | E27: ='Pour Day'!K44 -> 0 | F27: 0
AZ28: 5.093285495
B29: Water | AZ29: 3.347016183
B30: 0.7 | E30: ='Pour Day'!K47 ->  | F30: =E30*2 ->  | AZ30: 0
B31: 0.1 | E31: ='Pour Day'!K48 ->  | F31: =E31*2 -> 
B32: 0.05 | E32: ='Pour Day'!K48/2 -> 
B33: Total | E33: - | AZ33: 2.729142708
AZ34: 0.3898775297
B35: Admixtures | E35: ='Pour Day'!K50 -> Amount (ml) | AZ35: 0.1949387649
B36: Adva 140 M | E36: ='Pour Day'!K51 ->  | F36: =E36*2 ->  | AZ36: -
B37: Eclipse Floor 200 | E37: ='Pour Day'!K52 -> 0 | F37: =E37*2 -> 0
AZ38: Amount (ml)
AZ39: 9.01685071
AZ40: 19.46082887

Sheet Final Sheet (hidden)
B2: Mixture ID: | D2: JAGGF | I2: Design Proportions (Non SSD) | K2: Actual Batched Proportions | M2: Yielded Proportions | P2: Instructions
B3: YD | C3: Design Batch Size (ft3): | G3: 27 | P3: This sheet is for the final report. This needs to be accurate and professional. Review it a few times over before finally printing it. This page is also based off of the previous page titled "Pour Day." Make sure that sheet has been filled out properly. The mix before is the mix used on the canoe and this is the final report of it such.
B4: Cementitious Materials | H4: SG | I4: Amount (lb/yd3) | J4: Volume (ft3) | K4: Amount (lb) | L4: Volume (ft3) | M4: Amount (lb/yd3) | N4: Volume (ft3)
B5: CM1 | C5: Portland Cement, Type I, II | H5: ='45% Agg.'!$H$5 -> 3.15 | I5: =IF('Pour Day'!$J$5='45% Agg.'!$Z$4,'45% Agg.'!I5,IF('Pour Day'!$J$5='Mix 1'!$R$10,'Mix 1'!I5,IF('Pour Day'!$J$5='Mix 2'!$R$10,'Mix 2'!I5,IF('Pour Day'!$J$5='Mix 3'!$R$10,'Mix 3'!I5,IF('Pour Day'!$J$5='Mix 4'!$R$10,'Mix 4'!I5,""))))) -> 193.8026957 | J5: =I5/H5/62.4 -> 0.9859722002 | K5: ='Pour Day'!K41 -> 2.691704106 | L5: =K5/62.4/H5 -> 0.01369405834 | M5: =(H5*62.4*N5) -> 260.8127715 | N5: =L5*(27/$K$51) -> 1.326886302
B6: CM2 | C6: ='45% Agg.'!$C$6 -> Fly Ash | D6: ='45% Agg.'!$D$6 -> Class: F | E6: ='45% Agg.'!E6 -> 0 | F6: Amt: | G6: ='45% Agg.'!$G$6 -> 1.3 | H6: ='45% Agg.'!$H$6 -> 2.3 | I6: =IF('Pour Day'!$J$5='45% Agg.'!$Z$4,'45% Agg.'!I6,IF('Pour Day'!$J$5='Mix 1'!$R$10,'Mix 1'!I6,IF('Pour Day'!$J$5='Mix 2'!$R$10,'Mix 2'!I6,IF('Pour Day'!$J$5='Mix 3'!$R$10,'Mix 3'!I6,IF('Pour Day'!$J$5='Mix 4'!$R$10,'Mix 4'!I6,""))))) -> 183.9587492 | J6: =G6*$J$5 -> 1.28176386 | K6: ='Pour Day'!K42 -> 2.554982628 | L6: =K6/62.4/H6 -> 0.01780227584 | M6: =IF(G6="","",H6*62.4*N6) -> 247.5651387 | N6: =L6*(27/$K$51) -> 1.724952192
B7: CM3 | C7: ='45% Agg.'!$C$7 -> Graphene | F7: Amt: | G7: ='45% Agg.'!$G$7 -> 0.1 | H7: ='45% Agg.'!$H$7 -> 1 | I7: =IF('Pour Day'!$J$5='45% Agg.'!$Z$4,'45% Agg.'!I7,IF('Pour Day'!$J$5='Mix 1'!$R$10,'Mix 1'!I7,IF('Pour Day'!$J$5='Mix 2'!$R$10,'Mix 2'!I7,IF('Pour Day'!$J$5='Mix 3'!$R$10,'Mix 3'!I7,IF('Pour Day'!$J$5='Mix 4'!$R$10,'Mix 4'!I7,""))))) -> 6.152466529 | J7: =G7*$J$5 -> 0.09859722002 | K7: ='Pour Day'!K43 -> 0.08545092402 | L7: =K7/62.4/H7 -> 0.001369405834 | M7: =IF(G7="","",H7*62.4*N7) -> 8.279770524 | N7: =L7*(27/$K$51) -> 0.1326886302 | P7: Step 1. | Q7: Make sure that the mix from the page beofre is the same mix used on the canoe. Fil
B8: CM4 | C8: ='45% Agg.'!$C$8 -> Slag | F8: Amt: | G8: ='45% Agg.'!$G$8 -> 1.4 | H8: ='45% Agg.'!$H$8 -> 0 | I8: =IF('Pour Day'!$J$5='45% Agg.'!$Z$4,'45% Agg.'!I8,IF('Pour Day'!$J$5='Mix 1'!$R$10,'Mix 1'!I8,IF('Pour Day'!$J$5='Mix 2'!$R$10,'Mix 2'!I8,IF('Pour Day'!$J$5='Mix 3'!$R$10,'Mix 3'!I8,IF('Pour Day'!$J$5='Mix 4'!$R$10,'Mix 4'!I8,""))))) -> 0 | J8: =G8*$J$5 -> 1.38036108 | K8: ='Pour Day'!K44 -> 0 | L8: =K8/62.4/H8 ->  | M8: =IF(G8="","",H8*62.4*N8) ->  | N8: =L8*(27/$K$51) -> 
B9: Total Cementitious Materials: | I9: =SUM(I5:I8) -> 383.9139114 | J9: 3.746694361 | K9: 5.332137659 | P9: Step 2. | Q9: Use the table below to fill out the one section that is not filled out automatically, namely, the Admixtures section. Be sure to properly label the admixtures used
B10: Fibers
B11: F1 | C11: Grace Fibers | H11: ='45% Agg.'!$H$12 -> 0.91 | I11: =IF('Pour Day'!$J$5='45% Agg.'!$Z$4,'45% Agg.'!I12,IF('Pour Day'!$J$5='Mix 1'!$R$10,'Mix 1'!I12,IF('Pour Day'!$J$5='Mix 2'!$R$10,'Mix 2'!I11,IF('Pour Day'!$J$5='Mix 3'!$R$10,'Mix 3'!I11,IF('Pour Day'!$J$5='Mix 4'!$R$10,'Mix 4'!I11,""))))) -> 0 | J11: =IF(H11="","",I11/(H11*62.4)) -> 0 | K11: ='Pour Day'!K38 -> 0 | L11: =K11/62.4/H11 -> 0 | M11: =(H11*62.4*N11) -> 0 | N11: =L11*(27/$K$51) -> 0
B12: F2 | H12: ='45% Agg.'!$H$13 -> 0 | I12: ='45% Agg.'!$I$13 -> 0 | J12: =IF(H12=0,"",I12/(H12*62.4)) ->  | P12: Admixture amounts
B13: Total Fibers: | I13: =SUM(I11:I12) -> 0 | J13: =SUM(J11:J12) -> 0 | K13: =SUM(K11:K12) -> 0 | L13: =SUM(L11:L12) -> 0 | M13: =SUM(M11:M12) -> 0 | N13: =SUM(N11) -> 0 | R13: % Solides | S13: Dosage (fl oz/cwt) | T13: Total for 1 yd3 (ml) | U13: Amount (fl oz) | V13: Amount (ft3) | W13: Unit Weight of Water (lb/ft3) | X13: Water in Admixture (lbs) | Y13: Amount for Canoe (ml) | Z13: Amount (fl oz)
B14: Aggregates
B15: A1 | C15: ='45% Agg.'!$C$17 -> Utelite | E15: ='45% Agg.'!$E$17 -> 0.25 | F15: Abs: | G15: ='45% Agg.'!$G$17 -> 0 | H15: ='45% Agg.'!$H$17 -> 1.5 | I15: =IF('Pour Day'!$J$5='45% Agg.'!$Z$4,'45% Agg.'!I17,IF('Pour Day'!$J$5='Mix 1'!$R$10,'Mix 1'!I16,IF('Pour Day'!$J$5='Mix 2'!$R$10,'Mix 2'!I15,IF('Pour Day'!$J$5='Mix 3'!$R$10,'Mix 3'!I15,IF('Pour Day'!$J$5='Mix 4'!$R$10,'Mix 4'!I15,""))))) -> 0 | J15: =IF(E15="","",E15*$J$22) -> 4.05 | K15: ='Pour Day'!K29 -> 0 | L15: =K15/62.4/H15 -> 0 | M15: =IF(G15="","",H15*62.4*N15) -> 0 | N15: =L15*(27/$K$51) -> 0
B16: A2 | C16: ='45% Agg.'!$C$18 -> Size: 2-4 | E16: ='45% Agg.'!$E$18 -> 0.15 | F16: Abs: | G16: ='45% Agg.'!$G$18 -> 0.23 | H16: ='45% Agg.'!$H$18 -> 0.37 | I16: =IF('Pour Day'!$J$5='45% Agg.'!$Z$4,'45% Agg.'!I18,IF('Pour Day'!$J$5='Mix 1'!$R$10,'Mix 1'!I17,IF('Pour Day'!$J$5='Mix 2'!$R$10,'Mix 2'!I16,IF('Pour Day'!$J$5='Mix 3'!$R$10,'Mix 3'!I16,IF('Pour Day'!$J$5='Mix 4'!$R$10,'Mix 4'!I16,""))))) -> 379.08 | J16: 2.43 | K16: ='Pour Day'!K30 -> 5.265 | L16: 0.2280405405 | M16: 510.1523747 | N16: 22.09599683 | P16: Adva 195 M | R16: 0.75 | S16: 10 | T16: =CONVERT((S16*$I$45/100),"oz","ml") ->  | U16: =CONVERT((T16),"ml","oz") ->  | V16: =CONVERT((U16),"oz","ft^3") ->  | W16: 62.4 | X16: =R16*V16*W16 ->  | Y16: =T16/27*'Pour Day'!$E$16 ->  | Z16: =CONVERT((Y16),"ml","oz") -> 
B17: A3 | C17: ='45% Agg.'!$C$19 -> Size: 1-2 | E17: ='45% Agg.'!$E$19 -> 0.16 | F17: Abs: | G17: ='45% Agg.'!$G$19 -> 0.2 | H17: ='45% Agg.'!$H$19 -> 0.41 | I17: =IF('Pour Day'!$J$5='45% Agg.'!$Z$4,'45% Agg.'!I19,IF('Pour Day'!$J$5='Mix 1'!$R$10,'Mix 1'!I18,IF('Pour Day'!$J$5='Mix 2'!$R$10,'Mix 2'!I17,IF('Pour Day'!$J$5='Mix 3'!$R$10,'Mix 3'!I17,IF('Pour Day'!$J$5='Mix 4'!$R$10,'Mix 4'!I17,""))))) -> 56.10384 | J17: 2.592 | K17: ='Pour Day'!K31 -> 0.77922 | L17: 0.03045731707 | M17: 75.50255146 | N17: 2.951162893 | P17: Eclipse Floor 200 | R17: 0 | S17: 3.2 | T17: =CONVERT((S17*$I$45/100),"oz","ml") ->  | U17: =CONVERT((T17),"ml","oz") ->  | V17: =CONVERT((U17),"oz","ft^3") ->  | W17: 62.4 | X17: =R17*V17*W17 ->  | Y17: =T17/27*'Pour Day'!$E$16 ->  | Z17: =CONVERT((Y17),"ml","oz") -> 
B18: A4 | C18: ='45% Agg.'!$C$20 -> Size: 0.5-1 | E18: ='45% Agg.'!$E$20 -> 0.14 | F18: Abs: | G18: ='45% Agg.'!$G$20 -> 0.2 | H18: ='45% Agg.'!$H$20 -> 0.45 | I18: =IF('Pour Day'!$J$5='45% Agg.'!$Z$4,'45% Agg.'!I20,IF('Pour Day'!$J$5='Mix 1'!$R$10,'Mix 1'!I19,IF('Pour Day'!$J$5='Mix 2'!$R$10,'Mix 2'!I18,IF('Pour Day'!$J$5='Mix 3'!$R$10,'Mix 3'!I18,IF('Pour Day'!$J$5='Mix 4'!$R$10,'Mix 4'!I18,""))))) -> 66.313728 | J18: 2.268 | K18: ='Pour Day'!K32 -> 0.921024 | L18: 0.0328 | M18: 89.24265541 | N18: 3.178157244
B19: A5 | C19: ='45% Agg.'!$C$21 -> Size: 0.25-0.5 | E19: ='45% Agg.'!$E$21 -> 0.11 | F19: Abs: | G19: ='45% Agg.'!$G$21 -> 0.28 | H19: ='45% Agg.'!$H$21 -> 0.68 | I19: =IF('Pour Day'!$J$5='45% Agg.'!$Z$4,'45% Agg.'!I21,IF('Pour Day'!$J$5='Mix 1'!$R$10,'Mix 1'!I20,IF('Pour Day'!$J$5='Mix 2'!$R$10,'Mix 2'!I19,IF('Pour Day'!$J$5='Mix 3'!$R$10,'Mix 3'!I19,IF('Pour Day'!$J$5='Mix 4'!$R$10,'Mix 4'!I19,""))))) -> 63.68544 | J19: 1.782 | K19: ='Pour Day'!K33 -> 0.88452 | L19: 0.02084558824 | M19: 85.70559895 | N19: 2.019834063
B20: A6 | C20: ='45% Agg.'!$C$22 -> Size: 0.1-0.3 | E20: ='45% Agg.'!$E$22 -> 0.09 | F20: Abs: | G20: ='45% Agg.'!$G$22 -> 0.35 | H20: ='45% Agg.'!$H$22 -> 0.85 | I20: =IF('Pour Day'!$J$5='45% Agg.'!$Z$4,'45% Agg.'!I22,IF('Pour Day'!$J$5='Mix 1'!$R$10,'Mix 1'!I21,IF('Pour Day'!$J$5='Mix 2'!$R$10,'Mix 2'!I20,IF('Pour Day'!$J$5='Mix 3'!$R$10,'Mix 3'!I20,IF('Pour Day'!$J$5='Mix 4'!$R$10,'Mix 4'!I20,""))))) -> 75.613824 | J20: 1.458 | K20: ='Pour Day'!K34 -> 1.050192 | L20: 0.0198 | M20: 101.7583937 | N20: 1.918521751 | Q20: *% Solids for each admixture can be found on the admixture's MSDS sheet
B21: A7 | C21: ='45% Agg.'!$C$23 -> Size: 0.04-0.125 | E21: ='45% Agg.'!$E$23 -> 0.05 | F21: Abs: | G21: ='45% Agg.'!G23 -> 0.25 | H21: ='45% Agg.'!$H$23 -> 0.8 | I21: =IF('Pour Day'!$J$5='45% Agg.'!$Z$4,'45% Agg.'!I23,IF('Pour Day'!$J$5='Mix 1'!$R$10,'Mix 1'!I22,IF('Pour Day'!$J$5='Mix 2'!$R$10,'Mix 2'!I21,IF('Pour Day'!$J$5='Mix 3'!$R$10,'Mix 3'!I21,IF('Pour Day'!$J$5='Mix 4'!$R$10,'Mix 4'!I21,""))))) -> 77.33232 | J21: 0.81 | K21: ='Pour Day'!K35 -> 1.07406 | L21: 0.021515625 | M21: 104.0710844 | N21: 2.0847573
B22: Total Aggregates: | I22: =SUM(I15:I21) -> 718.129152 | J22: ='Pour Day'!J5*27 -> 16.2 | K22: =SUM(K15:K21) -> 9.974016 | L22: =SUM(L15:L21) -> 0.3534590708 | M22: =SUM(M15:M21) -> 966.4326586 | N22: =SUM(N15:N21) -> 34.24843008 | P22: Step 3. | Q22: The Measured Density from casting the canoe will also have to be entered in on cell K49 where it has the measured density.
B23: Water
B24: W1 | C24: Water for CM Hydration (W1a + W1b) | H24: 1 | I24: =IF('Pour Day'!$J$5='45% Agg.'!$Z$4,'45% Agg.'!I27,IF('Pour Day'!$J$5='Mix 1'!$R$10,'Mix 1'!I26,IF('Pour Day'!$J$5='Mix 2'!$R$10,'Mix 2'!I24,IF('Pour Day'!$J$5='Mix 3'!$R$10,'Mix 3'!I24,IF('Pour Day'!$J$5='Mix 4'!$R$10,'Mix 4'!I24,""))))) ->  | J24: =IF(I24="","",I24/H24/27) ->  | K24: =K26+K25 -> 1.661641298 | L24: =K24/62.4/H24 -> 0.02662886695 | M24: =K24*(27/$K$51) -> 161.0047966 | N24: =L24*(27/$K$51) -> 2.580205073
C25: W1a. Water from Admixtures | I25: =J40 ->  | K25: 0.062 | M25: =N40 ->  | P25: Step 4. | Q25: Copy only the final table on the left and paste it onto the next sheet.
C26: W1b. Additional Water | I26: =I24-I25 ->  | K26: =K43*K9 -> 1.599641298 | M26: =K26*(27/$K$51) -> 154.9973042
B27: W2 | C27: Water for Aggregates, SSD | H27: 1 | I27: =IF('Pour Day'!$J$5='45% Agg.'!$Z$4,'45% Agg.'!I30,IF('Pour Day'!$J$5='Mix 1'!$R$10,'Mix 1'!I29,IF('Pour Day'!$J$5='Mix 2'!$R$10,'Mix 2'!I27,IF('Pour Day'!$J$5='Mix 3'!$R$10,'Mix 3'!I27,IF('Pour Day'!$J$5='Mix 4'!$R$10,'Mix 4'!I27,""))))) -> 0 | K27: =G15*K15+G16*K16+G17*K17+G18*K18+G19*K19+G20*K20+G21*K21 -> 2.4347466 | M27: =I27/27*'Pour Day'!$E$16 -> 0 | P27: Step 5. | Q27: Delete any unnecessary rows from the table and prepare it to be printed for the final report.
B28: Total Water (W1 + W2): | I28: =I24+I27 ->  | J28: =J24 ->  | K28: =K24+K27 -> 4.096387898 | L28: =SUM(L24) -> 0.02662886695 | M28: =M27+M24 -> 161.0047966 | N28: =SUM(N24:N27) -> 2.580205073
B29: Solids Content of Latex, Dyes and Admixtures in Powder Form | P29: Step 6. | Q29: Print off in a pdf format and/or a hardcopy
B30: S1 | C30: Latex (if used)
B31: S2 | C31: Liquid Dye (if used)
B32: S3 | C32: Other Latex or Liquid Dye (if used)
B33: P1 | C33: Pigment 1 (Powder Form)
B34: Total Solids of Admixtures:
B35: Admixtures (including Pigments in Liquid Form)
H36: % Solids | I36: Dosage (fl oz/cwt) | J36: Water in Admixture (lb/yd3) | K36: Amount (fl oz) | L36: Water in Admixture (lb) | M36: Dosage (fl oz/cwt) | N36: Water in Admixture (lb/yd3) | W36: cm | X36: 607.7
W37: water | X37: 280.7
B38: Ad1 | C38: =P16 -> Adva 195 M | G38: lb/gal | H38: =R16 -> 0.75 | I38: =IF('Pour Day'!$J$5='45% Agg.'!$Z$4,'45% Agg.'!I43,IF('Pour Day'!$J$5='Mix 1'!$R$10,'Mix 1'!I40,IF('Pour Day'!$J$5='Mix 2'!$R$10,'Mix 2'!I38,IF('Pour Day'!$J$5='Mix 3'!$R$10,'Mix 3'!I38,IF('Pour Day'!$J$5='Mix 4'!$R$10,'Mix 4'!I38,""))))) -> Dosage (fl oz/cwt) | J38: =X16 ->  | K38: =CONVERT('Pour Day'!K51,"ml","oz") ->  | L38: =X16*K51/I51 ->  | M38: =I38 -> Dosage (fl oz/cwt) | N38: =L38*(27/$K$51) ->  | W38: agg | X38: 687.9
B39: Ad2 | C39: =P17 -> Eclipse Floor 200 | G39: lb/gal | H39: =R17 -> 0 | I39: =IF('Pour Day'!$J$5='45% Agg.'!$Z$4,'45% Agg.'!I44,IF('Pour Day'!$J$5='Mix 1'!$R$10,'Mix 1'!I41,IF('Pour Day'!$J$5='Mix 2'!$R$10,'Mix 2'!I39,IF('Pour Day'!$J$5='Mix 3'!$R$10,'Mix 3'!I39,IF('Pour Day'!$J$5='Mix 4'!$R$10,'Mix 4'!I39,""))))) -> 0 | J39: =X17 ->  | K39: =CONVERT('Pour Day'!K52,"ml","oz") -> 0 | L39: =J39/27*'Pour Day'!$E$16 ->  | M39: =I39 -> 0 | N39: =J39 -> 
B40: Water from Admixtures (W1a): | J40: =SUM(J38:J39) ->  | L40: =SUM(L38:L39) ->  | N40: =SUM(J40) -> 
B42: Cement-Cementitious Materials Ratio | I42: =I5/I9 -> 0.5048076923 | K42: =K5/K9 -> 0.5048076923 | M42: =M5/M9 -> 
B43: Water-Cementitious Materials Ratio | I43: ='45% Agg.'!$I$51:$J$51 -> 0.3 | K43: =I43 -> 0.3 | M43: =I43 -> 0.3
B44: Slump, Slump Flow, in. | I44: 2 +- 1 | K44: 2 +- 1 | M44: 3 +- 1
B45: M | C45: Mass of Concrete. lbs | I45: =SUM(I9,I13,I22,I28,I34) ->  | K45: =SUM(K9,K13,K22,K28,K34) -> 19.40254156 | M45: =SUM(M9,M13,M22,M28,M34) ->  | P45: 58.2
B46: V | C46: Absolute Volume of Concrete, ft3 | I46: =SUM(J34,J28,J22,J13,J9) ->  | K46: =SUM(L34,L28,L22,L13,L9) ->  | M46: =SUM(N34,N28,N22,N13,N9) ->  | P46: 72.9
B47: T | C47: Theorectical Density, lb/ft3 = (M / V) | I47: =I45/I46 ->  | K47: =K45/K46 ->  | M47: =M45/M46 -> 
B48: D | C48: Design Density, lb/ft3 = (M / 27) | I48: =I45/27 ->  | Q48: =27/K51 -> 96.89503793
B49: D | C49: Measured Density, lb/ft3 | K49: 69.63 | M49: 59.1 | S49: =K11*21 -> 0
B50: A | C50: Air Content, % = [(T - D) / T x 100%] | I50: =(I47-I48)/I47 ->  | K50: =(K47-K49)/K47 ->  | M50: =(M47-M49)/M47 -> 
B51: Y | C51: Yield, ft3 = (M / D) | I51: =I45/I48 ->  | K51: =K45/K49 -> 0.2786520402 | M51: 27 | P51: =K51*21/27 -> 0.2167293646 | Q51: =P51*2.25 -> 0.4876410703
B52: Ry | C52: Relative Yield = (Y / YD) | K52: =K51/K46 ->  | V52: weight | W52: 1.709 | X52: =W52/32.2 -> 0.05307453416 | Y52: =X52/X53 -> 2.162451063
V53: volume | W53: =PI()*1.5^2*6 -> 42.41150082 | X53: =W53/12^3 -> 0.02454369261 | Y53: =W52/X53 -> 69.63092422

Sheet Final Sheet Printout (hidden)
B2: Mixture ID: | D2: ='Pour Day'!K2 -> KADHF | I2: Design Proportions (Non SSD) | K2: Actual Batched Proportions | M2: Yielded Proportions
B3: YD | C3: Design Batch Size (ft3): | G3: 27
B4: Cementitious Materials | H4: SG | I4: Amount (lb/yd3) | J4: Volume (ft3) | K4: Amount (lb) | L4: Volume (ft3) | M4: Amount (lb/yd3) | N4: Volume (ft3)
B5: CM1 | C5: Portland Cement | H5: 3.15 | I5: 325.1597013 | J5: 1.654251635 | K5: 3.996754662 | L5: 0.02033350968 | M5: 400.7514929 | N5: 2.038825259
B6: CM2 | C6: ='45% Agg.'!$C$6 -> Fly Ash | D6: ='45% Agg.'!$D$6 -> Class: F | E6: ='45% Agg.'!E6 -> 0 | F6: Amt: | G6: ='45% Agg.'!$G$6 -> 1.3 | H6: 2.3 | I6: 178.063646 | J6: 1.240688726 | K6: 2.188698982 | L6: 0.01525013226 | M6: 219.4591509 | N6: 1.529118944
B7: CM4 | C7: ='45% Agg.'!$C$8 -> Slag | F7: Amt: | G7: ='45% Agg.'!$G$8 -> 1.4 | H7: 2.2 | I7: 9.083826577 | J7: 0.06617006539 | K7: 0.1116553683 | L7: 0.0008133403871 | M7: 11.19559726 | N7: 0.08155301035
B8: Total Cementitious Materials: | I8: =SUM(I5:I7) -> 512.3071739 | J8: 2.961110426 | K8: 6.297109012 | L8: 0.03639698232 | M8: 631.406241 | N8: 3.649497213
B9: Fibers
B10: F1 | C10: Grace Fibers | H10: 0.91 | I10: 2.5 | J10: 0.04402648633 | K10: 0.03072916667 | L10: 0.0005411588945 | M10: 3.081189729 | N10: 0.054261583
B11: Total Fibers: | I11: =SUM(I10:I10) -> 2.5 | J11: =SUM(J10:J10) -> 0.04402648633 | K11: =SUM(K10:K10) -> 0.03072916667 | L11: =SUM(L10:L10) -> 0.0005411588945 | M11: =SUM(M10:M10) -> 3.081189729 | N11: =SUM(N10) -> 0.054261583
B12: Aggregates
B13: A1 | C13: ='45% Agg.'!$C$17 -> Utelite | E13: ='45% Agg.'!$E$17 -> 0.25 | F13: Abs: | G13: ='45% Agg.'!$G$17 -> 0 | H13: 1.5 | I13: 43.21512 | J13: 0.4617 | K13: 0.53118585 | L13: 0.0056750625 | M13: 53.26159356 | N13: 0.5690341192
B14: A2 | C14: ='45% Agg.'!$C$18 -> Size: 2-4 | E14: ='45% Agg.'!$E$18 -> 0.15 | F14: Abs: | G14: ='45% Agg.'!$G$18 -> 0.23 | H14: 0.37 | I14: 92.3843232 | J14: 4.0014 | K14: 1.135557306 | L14: 0.049183875 | M14: 113.8614511 | N14: 4.931629033
B15: A3 | C15: ='45% Agg.'!$C$19 -> Size: 1-2 | E15: ='45% Agg.'!$E$19 -> 0.16 | F15: Abs: | G15: ='45% Agg.'!$G$19 -> 0.2 | H15: 0.41 | I15: 66.263184 | J15: 3.5397 | K15: 0.81448497 | L15: 0.03183571646 | M15: 81.66777679 | N15: 3.19214262
B16: A4 | C16: ='45% Agg.'!$C$20 -> Size: 0.5-1 | E16: ='45% Agg.'!$E$20 -> 0.14 | F16: Abs: | G16: ='45% Agg.'!$G$20 -> 0.2 | H16: 0.45 | I16: 82.6849296 | J16: 3.2319 | K16: 1.016335593 | L16: 0.0361942875 | M16: 101.9071823 | N16: 3.62917316
B17: A5 | C17: ='45% Agg.'!$C$21 -> Size: 0.25-0.5 | E17: ='45% Agg.'!$E$21 -> 0.11 | F17: Abs: | G17: ='45% Agg.'!$G$21 -> 0.28 | H17: 0.68 | I17: 51.858144 | J17: 1.8468 | K17: 0.63742302 | L17: 0.01502222426 | M17: 63.91391227 | N17: 1.506266786
B18: A6 | C18: ='45% Agg.'!$C$22 -> Size: 0.1-0.3 | E18: ='45% Agg.'!$E$22 -> 0.09 | F18: Abs: | G18: ='45% Agg.'!$G$22 -> 0.35 | H18: 0.85 | I18: 58.7725632 | J18: 1.3851 | K18: 0.722412756 | L18: 0.01362015 | M18: 72.43576724 | N18: 1.365681886
B19: A7 | C19: ='45% Agg.'!$C$23 -> Size: 0.04-0.125 | E19: ='45% Agg.'!$E$23 -> 0.05 | F19: Abs: | G19: ='45% Agg.'!G23 -> 0.25 | H19: 0.8 | I19: 48.977136 | J19: 0.9234 | K19: 0.60201063 | L19: 0.01205950781 | M19: 60.36313937 | N19: 1.209197503
B20: Total Aggregates: | I20: =SUM(I13:I19) -> 444.1554 | J20: ='Pour Day'!J5*27 -> 16.2 | K20: =SUM(K13:K19) -> 5.459410125 | L20: =SUM(L13:L19) -> 0.1635908235 | M20: =SUM(M13:M19) -> 547.4108227 | N20: =SUM(N13:N19) -> 16.40312511
B21: Water
B22: W1 | C22: Water for CM Hydration (W1a + W1b) | H22: 1 | I22: 232.3313034 | J22: 8.604863087 | K22: 2.917738937 | L22: 0.04675863681 | M22: 292.5594222 | N22: 4.688452279
C23: W1a. Water from Admixtures | I23: =J32 -> 6.199642968 | K23: 0.062 | M23: =N32 -> 6.199642968
C24: W1b. Additional Water | I24: =I22-I23 -> 226.1316604 | K24: =K35*K8 -> 2.855738937 | M24: =K24*(27/$K$43) -> 286.3427303
B25: W2 | C25: Water for Aggregates, SSD | H25: 1 | I25: =IF('Pour Day'!$J$5='45% Agg.'!$Z$4,'45% Agg.'!I30,IF('Pour Day'!$J$5='Mix 1'!$R$10,'Mix 1'!I29,IF('Pour Day'!$J$5='Mix 2'!$R$10,'Mix 2'!I27,IF('Pour Day'!$J$5='Mix 3'!$R$10,'Mix 3'!I27,IF('Pour Day'!$J$5='Mix 4'!$R$10,'Mix 4'!I27,""))))) -> 0 | K25: =G13*K13+G14*K14+G15*K15+G16*K16+G17*K17+G18*K18+G19*K19 -> 1.209167861 | M25: =I25/27*'Pour Day'!$E$16 -> 0
B26: Total Water (W1 + W2): | I26: =I22+I25 -> 232.3313034 | J26: =J22 -> 8.604863087 | K26: =K22+K25 -> 4.126906798 | L26: =SUM(L22) -> 0.04675863681 | M26: =M25+M22 -> 292.5594222 | N26: =SUM(N22:N25) -> 4.688452279
B27: Admixtures (including Pigments in Liquid Form)
H28: % Solids | I28: Dosage (fl oz/cwt) | J28: Water in Admixture (lb/yd3) | K28: Amount (fl oz) | L28: Water in Admixture (lb) | M28: Dosage (fl oz/cwt) | N28: Water in Admixture (lb/yd3)
B30: Ad1 | C30: =P14 -> 0 | G30: lb/gal | H30: 0.75 | I30: 9.39 | J30: 6.199642968 | K30: 1.463992733 | L30: 0.0618299679 | M30: 9.39 | N30: 6.199642968
B31: Ad2 | C31: =P15 -> 0 | G31: lb/gal | H31: =R15 -> 0 | I31: 3.005 | J31: 0 | K31: 0.4685088565 | L31: 0 | M31: 3.005 | N31: 0
B32: Water from Admixtures (W1a): | J32: =SUM(J30:J31) -> 6.199642968 | L32: =SUM(L30:L31) -> 0.0618299679 | N32: =SUM(J32) -> 6.199642968
B34: Cement-Cementitious Materials Ratio | I34: 0.634696756 | K34: 0.634696756 | M34: 0.634696756
B35: Water-Cementitious Materials Ratio | I35: 0.4535 | K35: 0.4535 | M35: 0.4535
B36: Slump, Slump Flow, in. | I36: 3 +- 1 | K36: 2 +- 1 | M36: 3 +- 1
B37: M | C37: Mass of Concrete. lbs | I37: 1268.418461 | K37: 15.9141551 | M37: 1512.377263
B38: V | C38: Absolute Volume of Concrete, ft3 | I38: 27 | K38: 0.2472876016 | M38: 24.79533618
B39: T | C39: Theorectical Density, lb/ft3 = (M / V) | I39: 46.97846153 | K39: 64.35484432 | M39: 60.99442458
B40: D | C40: Design Density, lb/ft3 = (M / 27) | I40: =I37/27 -> 46.97846153
B41: D | C41: Measured Density, lb/ft3 | K41: 59.1 | M41: 59.1
B42: A | C42: Air Content, % = [(T - D) / T x 100%] | I42: =(I39-I40)/I39 -> 3.024972349e-16 | K42: 0.08165421542 | M42: 0.03105897948
B43: Y | C43: Yield, ft3 = (M / D) | I43: =I37/I40 -> 27 | K43: 0.269275044 | M43: 27
B44: Ry | C44: Relative Yield = (Y / YD) | K44: =K43/K38 -> 1.088914456

Sheet 2016 Mix Design (hidden)
A1: MIXTURE DESIGNATION:
A2: Cementitious Materials
A3: Component | E3: Specific Gravity | N3: Volume (ft3) | R3: Amount (mass/volume) (lb/yd3)
A4: Cement, ASTM Type I, II | E4: 3.15 | N4: 2.819015834 | R4: c: | T4: 554.1057523 | Y4: Mass of all cementitious materials, cm
Y5: 914.3039755 | AB5: lb/yd3
A6: Fly Ash Class F | E6: 2.3 | N6: 2.509742358 | R6: m1: | T6: 360.1982232 | Y6: c/cm ratio
Y7: 0.606041062
A8: Fibers
A9: Component | F9: Specific Gravity | N9: Volume (ft3) | R9: Amount (mass/volume) (lb/yd3)
A10: Grace Fibers | F10: 0.91 | N10: 0.04402648633 | R10: f1: | V10: 2.5
A11: Aggregates
A12: Aggregates | B12: Abs (%) | I12: MCstk (%) | L12: SG | P12: Base Quantity (lb/yd3) | W12: Volume, SSD (ft3) | AB12: Batch Quantity
P13: OD | T13: SSD | AB13: (at MCstk) (lb/yd3)
A14: Utelite (Expanded Shale) | B14: 0 | I14: 0.18 | L14: 1.5 | P14: WOD,1: | R14: 207.5302373 | T14: WSSD,1: | U14: 244.88568 | W14: 848.937024 | AB14: Wstk,1: | AC14: 244.88568
A15: Size: 2-4 | B15: 0.23 | I15: 0.005 | L15: 0.37 | P15: WOD,2: | R15: 106.4024291 | T15: WSSD,2: | U15: 130.8749878 | W15: 111.9126563 | AB15: Wstk,2: | AC15: 106.9344413
A16: Size: 1-2 | B16: 0.2 | I16: 0.005 | L16: 0.41 | P16: WOD,3: | R16: 55.2142335 | T16: WSSD,3: | U16: 66.2570802 | W16: 62.78226444 | AB16: Wstk,3: | AC16: 55.49030467
A17: Size: 0.5-1 | C17: 0.2 | I17: 0.005 | L17: 0.45 | P17: WOD,3: | R17: 84.89188401 | T17: WSSD,3: | U17: 84.89188401 | W17: 88.28755937 | AB17: Wstk,4: | AC17: 85.31634343 | AF17: cm | AG17: 607.7
A18: Size: 0.25-0.5 | B18: 0.28 | I18: 0.005 | L18: 0.68 | P18: WOD,3: | R18: 51.76334391 | T18: WSSD,3: | U18: 66.2570802 | W18: 104.1266825 | AB18: Wstk,5: | AC18: 52.02216063 | AF18: water | AG18: 280.7
A19: Size: 0.1-0.3 | B19: 0.35 | I19: 0.005 | L19: 0.85 | P19: WOD,3: | R19: 70.39814771 | T19: WSSD,3: | U19: 95.03749941 | W19: 186.6958877 | AB19: Wstk,6: | AC19: 70.75013845 | AF19: agg | AG19: 687.9
A20: Size: 0.04-0.125 | B20: 0.25 | I20: 0.005 | L20: 0.8 | P20: WOD,4: | R20: 48.88760258 | T20: WSSD,4: | U20: 61.10950322 | W20: 112.9846815 | AB20: Wstk,7: | AC20: 49.13204059
A21: Admixtures | AE21: =SUM(U14:V20) -> 749.3137149
A22: Admixture | C22: lb/gal | H22: Dosage | M22: % Solids | S22: Water in Admixture (lb/yd3)
H23: (fl.oz/cwt)
A24: Adva 195 M | C24: 8.8 | H24: x3: | J24: 1.39 | M24: s1: | N24: 0.75 | S24: wadmx,1: | T24: 7.906998945 | Z24: Total Water from All Admixtures
A25: Eclipse Floor 200 | C25: 7.7 | H25: x4: | J25: 3 | M25: s2: | N25: 0 | S25: wadmx,2: | T25: 0 | Z25: 7.906998945 | AB25: lb/yd3 | AD25: =J24 -> 1.39
A26: Solids (latex, dyes and powdered admixtures)
A27: Component | G27: Specific Gravity | O27: Volume (ft3) | S27: Amount (mass/volume) (lb/yd3)
A28: Latex (if used) | S28: S1:
A29: Liquid Dye (if used) | S29: S2:
A30: Powdered Admixture | S30: S3:
A31: Water
J32: Amount (mass/volume) (lb/yd3) | AA32: Volume (ft3) | AE32: Mc total | AF32: MC Free | AG32: Wfree
A33: Water, lb/yd3 | S33: w: | U33: 230.1760258 | AA33: 0.1366191986 | AE33: =(AC14-R14)/R14 -> 0.18 | AF33: =AE33-B14 -> 0.18 | AG33: =R14*(AF33) -> 37.35544271
A34: Total Free Water from All Aggregates, lb/yd3 | S34: ∑wfree: | U34: -47.42716312 | AE34: =(AC15-R15)/R15 -> 0.005 | AF34: =AE34-B15 -> -0.225 | AG34: =R15*(AF34) -> -23.94054656
A35: Total Water from All Admixtures, lb/yd3 | S35: ∑wadmx: | U35: 7.906998945 | AE35: 0.005 | AF35: -0.195 | AG35: -10.76677553
A36: Batch Water, lb/yd3 | S36: wbatch: | U36: 280.7 | AE36: 0.005 | AF36: 0.005 | AG36: 0.42445942
A37: Densities, Air Content, Ratios and Slump | AE37: 0.005 | AF37: -0.275 | AG37: -14.23491957
D38: cm | K38: fibers | Q38: aggregates | U38: solids | X38: water | AC38: Total | AE38: 0.005 | AF38: -0.345 | AG38: -24.28736096
A39: Mass of Concrete, M, (lb, for1 yd3 ) | D39: 607.7 | K39: 3 | Q39: 687.9 | U39: 0 | X39: 280.7 | AC39: 1851.031275 | AE39: 0.005 | AF39: -0.245 | AG39: -11.97746263
A40: Absolute Volume of Concrete, V, (ft3) | D40: 5.328758192 | K40: 0.05273520363 | Q40: 16.45024767 | U40: 0 | X40: 4.338079968 | AC40: 26.16982103 | AD40: =AC40/27 -> 0.9692526308
A41: Theoretical Density, T, (= M / V) | D41: 69.63 | K41: lb/ft3 | Q41: Air Content [= (T – D)/D x 100%] | AC41: 0.05118107555
A42: Measured Density, D | D42: 64 | K42: lb/ft3 | Q42: Slump, Slump flow | AC42: 2.25 in.
A43: water/cement ratio, w/c: | D43: 0.32 | Q43: water/cementitious material ratio, w/cm: | AC43: 0.32
Y50: =D40*D41 -> 371.0414329

Sheet 2016 Mix Design (2) (hidden)
A1: MIXTURE DESIGNATION:
A2: Cementitious Materials | AN2: Mixture ID: | AP2: KADHF | AU2: Design Proportions (Non SSD) | AW2: Actual Batched Proportions for Design | AY2: Yielded Proportions
A3: Component | E3: Specific Gravity | N3: Volume (ft3) | R3: Amount (mass/volume) (lb/yd3) | AN3: YD | AO3: Design Batch Size (ft3): | AS3: 27
A4: Cement, ASTM Type I, II | E4: 3.15 | N4: ='Final Sheet'!N5 -> 1.326886302 | R4: c: | T4: =E4*62.4*N4 -> 260.8127715 | Y4: Mass of all cementitious materials, cm | AN4: Cementitious Materials | AT4: SG | AU4: Amount (lb/yd3) | AV4: Volume (ft3) | AW4: Amount (lb) | AX4: Volume (ft3) | AY4: Amount (lb/yd3) | AZ4: Volume (ft3)
Y5: =SUM(T4:W7) -> 508.3779101 | AB5: lb/yd3 | AN5: CM1 | AO5: Portland Cement | AT5: 3.15 | AU5: 366.7165557 | AV5: 1.865672343 | AW5: 1.000064268 | AX5: 0.005087832054
A6: Fly Ash Class F | E6: 2.3 | N6: ='Final Sheet'!N6 -> 1.724952192 | R6: m1: | T6: =E6*62.4*N6 -> 247.5651387 | Y6: c/cm ratio | AN6: CM2 | AO6: Fly Ash | AP6: Class: F | AQ6: 0 | AR6: Amt: | AS6: 0.9 | AT6: 2.3 | AU6: 240.9851652 | AV6: 1.679105108 | AW6: 0.6571850907 | AX6: 0.004579048848
Y7: ='Final Sheet'!M42 ->  | AN7: CM3 | AO7: Metakaolin | AR7: Amt: | AS7: 0 | AT7: 2.3 | AU7: 0 | AV7: 0 | AW7: 0 | AX7: 0
A8: Fibers | AN8: CM4 | AO8: Silica Fume | AR8: Amt: | AS8: 0 | AT8: 2.2 | AU8: 0 | AV8: 0 | AW8: 0 | AX8: 0
A9: Component | F9: Specific Gravity | N9: Volume (ft3) | R9: Amount (mass/volume) (lb/yd3) | AN9: Total Cementitious Materials: | AU9: 607.7017208 | AV9: 3.544777451 | AW9: 1.657249359 | AX9: 0.009666880902
A10: Grace Fibers | F10: 0.91 | N10: ='Final Sheet'!J11 -> 0 | R10: f1: | V10: =N10*62.4*F10 -> 0 | AN10: Fibers
A11: Aggregates | AN11: F1 | AO11: Grace Fibers | AT11: 0.91 | AU11: 3 | AV11: 0.0528317836 | AW11: 0.0122718463 | AX11: 0.0002161145094
A12: Aggregates | B12: Abs (%) | I12: MCstk (%) | L12: SG | P12: Base Quantity (lb/yd3) | W12: Volume, SSD (ft3) | AB12: Batch Quantity | AN12: F2 | AO12: Fiber 2 | AT12: 0 | AU12: 0
P13: OD | T13: SSD | AB13: (at MCstk) (lb/yd3) | AN13: Total Fibers: | AU13: 3 | AV13: 0.0528317836
A14: Utelite (Expanded Shale) | B14: ='Final Sheet'!G15 -> 0 | I14: 0.18 | L14: ='Final Sheet'!H15 -> 1.5 | P14: WOD,1: | R14: =U14/(1+I14) -> 0 | T14: WSSD,1: | U14: ='Pour Day'!G29 -> 0 | W14: =U14*62.4*L14/27 -> 0 | AB14: Wstk,1: | AC14: =(1+I14)*R14 -> 0 | AN14: Aggregates
A15: ='Final Sheet'!C16 -> Size: 2-4 | B15: ='Final Sheet'!G16 -> 0.23 | I15: 0.005 | L15: ='Final Sheet'!H16 -> 0.37 | P15: WOD,2: | R15: ='Final Sheet'!M16 -> 510.1523747 | T15: WSSD,2: | U15: =R15*(1+B15) -> 627.4874209 | W15: =U15*62.4*L15/27 -> 536.5714657 | AB15: Wstk,2: | AC15: =(1+I15)*R15 -> 512.7031366 | AN15: A1 | AO15: Utelite | AQ15: 0.17 | AR15: Abs: | AS15: 0 | AT15: 1.5 | AU15: 257.7744 | AV15: 2.754 | AW15: 0.7029706261 | AX15: 0.007510369937
A16: ='Final Sheet'!C17 -> Size: 1-2 | B16: ='Final Sheet'!G17 -> 0.2 | I16: 0.005 | L16: ='Final Sheet'!H17 -> 0.41 | P16: WOD,3: | R16: ='Final Sheet'!M17 -> 75.50255146 | T16: WSSD,3: | U16: 90.60306175 | W16: 85.85143451 | AB16: Wstk,3: | AC16: =(1+I16)*R16 -> 75.88006421 | AN16: A2 | AO16: Size: 2-4 | AQ16: 0.26 | AR16: Abs: | AS16: 0.23 | AT16: 0.37 | AU16: 97.246656 | AV16: 4.212 | AW16: 0.2651991146 | AX16: 0.01148644814
A17: ='Final Sheet'!C18 -> Size: 0.5-1 | C17: ='Final Sheet'!G18 -> 0.2 | I17: 0.005 | L17: ='Final Sheet'!H18 -> 0.45 | P17: WOD,3: | R17: ='Final Sheet'!M18 -> 89.24265541 | T17: WSSD,3: | U17: 89.24265541 | W17: 92.81236163 | AB17: Wstk,4: | AC17: 89.68886869 | AN17: A3 | AO17: Size: 1-2 | AQ17: 0.15 | AR17: Abs: | AS17: 0.2 | AT17: 0.41 | AU17: 62.16912 | AV17: 2.43 | AW17: 0.1695399745 | AX17: 0.006626797004
A18: ='Final Sheet'!C19 -> Size: 0.25-0.5 | B18: ='Final Sheet'!G19 -> 0.28 | I18: 0.005 | L18: ='Final Sheet'!H19 -> 0.68 | P18: WOD,3: | R18: ='Final Sheet'!M19 -> 85.70559895 | T18: WSSD,3: | U18: 109.7031667 | W18: 172.404621 | AB18: Wstk,5: | AC18: 86.13412694 | AN18: A4 | AO18: Size: 0.5-1 | AQ18: 0.17 | AR18: Abs: | AS18: 0.2 | AT18: 0.45 | AU18: 77.33232 | AV18: 2.754 | AW18: 0.2108911878 | AX18: 0.007510369937
A19: ='Final Sheet'!C20 -> Size: 0.1-0.3 | B19: ='Final Sheet'!G20 -> 0.35 | I19: 0.005 | L19: ='Final Sheet'!H20 -> 0.85 | P19: WOD,3: | R19: ='Final Sheet'!M20 -> 101.7583937 | T19: WSSD,3: | U19: =R19*(1+B19) -> 137.3738315 | W19: 269.86326 | AB19: Wstk,6: | AC19: 102.2671856 | AN19: A5 | AO19: Size: 0.25-0.5 | AQ19: 0.11 | AR19: Abs: | AS19: 0.28 | AT19: 0.68 | AU19: 75.613824 | AV19: 1.782 | AW19: 0.206204717 | AX19: 0.004859651136
A20: ='Final Sheet'!C21 -> Size: 0.04-0.125 | B20: ='Final Sheet'!G21 -> 0.25 | I20: 0.005 | L20: ='Final Sheet'!H21 -> 0.8 | P20: WOD,4: | R20: ='Final Sheet'!M21 -> 104.0710844 | T20: WSSD,4: | U20: 130.0888555 | W20: =U20*62.4*L20/27 -> 240.5198396 | AB20: Wstk,7: | AC20: =(1+I20)*R20 -> 104.5914399 | AN20: A6 | AO20: Size: 0.1-0.3 | AQ20: 0.09 | AR20: Abs: | AS20: 0.35 | AT20: 0.85 | AU20: 77.33232 | AV20: 1.458 | AW20: 0.2108911878 | AX20: 0.003976078202
A21: Admixtures | AE21: =SUM(U14:V20) -> 1184.498992 | AN21: A7 | AO21: Size: 0.04-0.125 | AQ21: 0.05 | AR21: Abs: | AS21: 0.25 | AT21: 0.8 | AU21: 40.4352 | AV21: 0.81 | AW21: 0.1102699021 | AX21: 0.002208932335
A22: Admixture | C22: lb/gal | H22: Dosage | M22: % Solids | S22: Water in Admixture (lb/yd3) | AN22: Total Aggregates: | AU22: 687.90384 | AV22: 16.2 | AW22: 1.87596671 | AX22: 0.04417864669
H23: (fl.oz/cwt) | AN23: Water
A24: Adva 195 M | C24: 8.8 | H24: x3: | J24: 1.39 | M24: s1: | N24: 0.75 | S24: wadmx,1: | T24: ='Final Sheet'!J38 ->  | Z24: Total Water from All Admixtures | AN24: W1 | AO24: Water for CM Hydration (W1a + W1b) | AT24: 1 | AU24: 194.4645507 | AV24: 7.202390765 | AW24: 0.5303197949 | AX24: 0.01964147389
A25: Eclipse Floor 200 | C25: 7.7 | H25: x4: | J25: 3 | M25: s2: | N25: 0 | S25: wadmx,2: | T25: ='Final Sheet'!J39 ->  | Z25: ='Final Sheet'!N40 ->  | AB25: lb/yd3 | AD25: =J24 -> 1.39 | AO25: W1a. Water from Admixtures | AU25: 0 | AW25: 0
A26: Solids (latex, dyes and powdered admixtures) | AO26: W1b. Additional Water | AU26: 194.4645507 | AW26: 0.5303197949
A27: Component | G27: Specific Gravity | O27: Volume (ft3) | S27: Amount (mass/volume) (lb/yd3) | AN27: W2 | AO27: Water for Aggregates, SSD | AT27: 1 | AU27: 86.24727072 | AW27: 0.2352029445
A28: Latex (if used) | S28: S1: | AN28: Total Water (W1 + W2): | AU28: 280.7118214 | AV28: 7.202390765 | AW28: 1.428474591 | AX28: 0.01964147389
A29: Liquid Dye (if used) | S29: S2: | AN29: Solids Content of Latex, Dyes and Admixtures in Powder Form
A30: Powdered Admixture | S30: S3: | AN30: S1 | AO30: Latex (if used)
A31: Water | AN31: S2 | AO31: Liquid Dye (if used)
J32: Amount (mass/volume) (lb/yd3) | AA32: Volume (ft3) | AE32: Mc total | AF32: MC Free | AG32: Wfree | AN32: S3 | AO32: Other Latex or Liquid Dye (if used)
A33: Water, lb/yd3 | S33: w: | U33: ='Final Sheet'!I43*Y5 -> 152.513373 | AA33: =U33/62.4/27 -> 0.09052313215 | AE33: =(AC14-R14)/R14 ->  | AF33: =AE33-B14 ->  | AG33: =R14*(AF33) ->  | AN33: P1 | AO33: Pigment 1 (Powder Form)
A34: Total Free Water from All Aggregates, lb/yd3 | S34: ∑wfree: | U34: =SUM(AG33:AG39) ->  | AE34: =(AC15-R15)/R15 -> 0.005 | AF34: =AE34-B15 -> -0.225 | AG34: =R15*(AF34) -> -114.7842843 | AN34: Total Solids of Admixtures: | AU34: 0 | AV34: 0
A35: Total Water from All Admixtures, lb/yd3 | S35: ∑wadmx: | U35: =Z25 ->  | AE35: 0.005 | AF35: -0.195 | AG35: -14.72299753 | AN35: Admixtures (including Pigments in Liquid Form)
A36: Batch Water, lb/yd3 | S36: wbatch: | U36: =U33-(U34+U35) ->  | AE36: 0.005 | AF36: 0.005 | AG36: 0.4462132771 | AT36: % Solids | AU36: Dosage (fl oz/cwt) | AV36: Total (ml) | AW36: Amount (ml) | AX36: Water in Admixture (lb) | AY36: Dosage (fl oz/cwt) | AZ36: Water in Admixture (lb/yd3)
A37: Densities, Air Content, Ratios and Slump | AE37: 0.005 | AF37: -0.275 | AG37: -23.56903971 | AV37: 0 | AW37: 0
D38: cm | K38: fibers | Q38: aggregates | U38: solids | X38: water | AC38: Total | AE38: 0.005 | AF38: -0.345 | AG38: -35.10664582 | AN38: Ad1 | AO38: Water Reducers | AS38: lb/gal | AU38: 1.39 | AV38: 649.2132512 | AW38: 1.770454497
A39: Mass of Concrete, M, (lb, for1 yd3 ) | D39: =Y5 -> 508.3779101 | K39: =V10 -> 0 | Q39: =SUM(AC14:AC20) -> 971.2648219 | U39: =0 -> 0 | X39: =U36 ->  | AC39: =SUM(D39:AB39) ->  | AE39: 0.005 | AF39: -0.245 | AG39: -25.49741569 | AN39: Ad2 | AO39: Shrinkage Reducers | AS39: lb/gal | AU39: 3 | AV39: 1401.179679 | AW39: 3.821124813
A40: Absolute Volume of Concrete, V, (ft3) | D40: ='Final Sheet'!N9 ->  | K40: ='Final Sheet'!N13 -> 0 | Q40: ='Final Sheet'!N22 -> 34.24843008 | U40: =U39 -> 0 | X40: =(U36+1)/62.4 ->  | AC40: =SUM(D40:AB40) ->  | AD40: =AC40/27 ->  | AN40: Water from Admixtures (W1a): | AV40: 2050.39293
A41: Theoretical Density, T, (= W/ V) | D41: =AC39/AC40 ->  | K41: lb/ft2 | Q41: Air Content [= (T – D)/D x 100%] | AC41: ='Final Sheet'!K50 -> 
A42: Measured Density, D | D42: 69.63 | K42: lb/ft3 | Q42: Slump, Slump flow | AC42: 2 in | AN42: Cement-Cementitious Materials Ratio | AU42: 0.6034482759 | AW42: 0.6034482759
A43: water/cement ratio, w/c: | D43: =X39/D39 ->  | Q43: water/cementitious material ratio, w/cm: | AC43: ='Final Sheet'!K43 -> 0.3 | AN43: Water-Cementitious Materials Ratio | AU43: 0.32 | AW43: 0.32
AN44: Slump, Slump Flow, in. | AU44: 3 +- 1 | AW44: 3 +- 1
AN45: M | AO45: Mass of Concrete. lbs | AU45: 1579.317382 | AW45: 4.961690661
AN46: V | AO46: Absolute Volume of Concrete, ft3 | AU46: 27 | AW46: 0.07348700148
AN47: T | AO47: Theorectical Density, lb/ft3 = (M / V) | AU47: 58.49323638 | AW47: 67.51793597
AN48: D | AO48: Design Density, lb/ft3 = (M / 27) | AU48: 58.49323638
P49: =D40*D41 ->  | AN49: D | AO49: Measured Density, lb/ft3 | AW49: 69
AN50: A | AO50: Air Content, % = [(T - D) / T x 100%] | AU50: 0 | AW50: 1
AN51: Y | AO51: Yield, ft3 = (M / D) | AU51: 27 | AW51: 0.0719085603
AN52: Ry | AO52: Relative Yield = (Y / YD) | AW52: 0.001042153048

Sheet Sheet1 (hidden)
A1: MIXTURE DESIGNATION:
A2: Cementitious Materials
A3: Component | B3: Specific Gravity | C3: Volume (ft3) | D3: Amount (mass/volume) (lb/yd3)
A4: Cement, ASTM Type I, II | B4: 3.15 | D4: c: | F4: Mass of all cementitious materials, cm
A5: Cementitious Material 1 | B5: 2.3 | D5: m1: | F5: _______ lb/yd3
A7: Fibers
A8: Component | B8: Specific Gravity | C8: Volume (ft3) | D8: Amount (mass/volume) (lb/yd3)
A9: Grace Fibers | B9: 0.91 | E9: f1:
A11: Aggregates

Sheet Original File (hidden)
B2: Mixture ID: | I2: Design Proportions (Non SSD) | K2: Actual Batched Proportions | M2: Yielded Proportions
B3: YD | C3: Design Batch Size (ft3): | P3: The notes below are not to be included with the table when inserted into the Design Report
B4: Cementitious Materials | H4: SG | I4: Amount (lb/yd3) | J4: Volume (ft3) | K4: Amount (lb) | L4: Volume (ft3) | M4: Amount (lb/yd3) | N4: Volume (ft3)
B5: CM1 | C5: Portland Cement | P5: Volumes are absolute volumes and computed as follows:
B6: CM2 | P6: Amount / (SG x 62.4)
B7: CM3
B8: CM4 | P8: cwt is "per hundred weight" (example, 800 pcy of cm has 8 cwt)
B9: Total Cementitious Materials:
B10: Fibers | P10: Water for CM hydration is as follows:
B11: F1 | C11: Fiber 1 | P11: Water-Cementitious Materials Ratio x Total of Cementitious Materials
B12: F2 | C12: Fiber 2
B13: Total Fibers: | P13: Water for Aggregates, SSD is the water needed to condition aggregates from completely dry
B14: Aggregates | P14: to the Saturated Surface Dry (SSD) condition, and is as follows:
B15: A1 | C15: Aggregate 1 | F15: Abs: | P15: S (Aggregate Amount x Absoprtion)
B16: A2 | C16: Aggregate 2 | F16: Abs:
B17: A3 | C17: Aggregate 3 | F17: Abs: | P17: Additional Water is the remaining amount of water needed to hydrate the cm once the water
B18: Total Aggregates: | P18: from the admixtures is accounted for and is based on assumption that the aggregate
B19: Water | P19: is in SSD condition.
B20: W1 | C20: Water for CM Hydration (W1a + W1b)
C21: W1a. Water from Admixtures | P21: Water in Admixture (lb/yd3) for Design and Yield is as follows:
C22: W1b. Additional Water | P22: dosage x cwt of cm x water content(%) x (1 gal/128 fl oz) x (lbs/gal of admixture)
B23: W2 | C23: Water for Aggregates, SSD
B24: Total Water (W1 + W2): | P24: Total Water Amount consitutes the weight of all the water in the mixture and is as follows:
B25: Solids Content of Latex, Dyes and Admixtures in Powder Form | P25: Water Amount for CM Hydration + Water Amount for Aggregate, SSD
B26: S1 | C26: Latex (if used)
B27: S2 | C27: Liquid Dye (if used) | P27: Total Water Volume is the volume of the water for cm hydration since the volume of aggregates
B28: S3 | C28: Other Latex or Liquid Dye (if used) | P28: already accounts for the volume of water needed to reach SSD condition, and is as follows
B29: P1 | C29: Pigment 1 (Powder Form) | P29: Volume of Water for CM Hydration
B30: Total Solids of Admixtures:
B31: Admixtures (including Pigments in Liquid Form) | P31: Solids Content of Admixture (lb/yd3) for Design and Yield is as follows:
H32: % Solids | I32: Dosage (fl oz/cwt) | J32: Water in Admixture (lb/yd3) | K32: Amount (fl oz) | L32: Water in Admixture (lb) | M32: Dosage (fl oz/cwt) | N32: Water in Admixture (lb/yd3) | P32: dosage x cwt of cm x solids content(%) x (1 gal/128 fl oz) x (lbs/gal of admixture)
B34: Ad1 | C34: Admixture 1 | G34: lb/gal | P34: Amount (fl oz) of admixture is computed as:
B35: Ad2 | C35: Admixture 2 | G35: lb/gal | P35: dosage x cwt of cm (of the batch size)
B36: Ad3 | C36: Admixture 3 | G36: lb/gal
B37: Water from Admixtures (W1a):
B39: Cement-Cementitious Materials Ratio | P39: Mass of Concete is as follows:
B40: Water-Cementitious Materials Ratio | P40: Amount of CM + Fibers + Aggregate + Total Water + Solids
B41: Slump, Slump Flow, in.
B42: M | C42: Mass of Concrete. lbs | P42: Absolute Volume of Concrete is as follows:
B43: V | C43: Absolute Volume of Concrete, ft3 | P43: Volume of CM + Fibers + Aggregate + Water for CM Hydration + Solids
B44: T | C44: Theorectical Density, lb/ft3 = (M / V)
B45: D | C45: Design Density, lb/ft3 = (M / 27) | P45: Yields for Design and Yielded Proportions MUST come out to 27 ft3 since the proportions listed
B46: D | C46: Measured Density, lb/ft3 | P46: are those required to make 1 yd3 of concrete (i.e. "X" pounds per 1 yd3)
B47: A | C47: Air Content, % = [(T - D) / T x 100%]
B48: Y | C48: Yield, ft3 = (M / D) | P48: Measured Density is the plastic (wet) density after mixing, before setting (the density of the
B49: Ry | C49: Relative Yield = (Y / YD) | P49: cylinders, cubes, etc. cast); not that of hardened and/or dried concrete
P51: Yielded Proportions are computed as follows:
P52: Amount / Relative Yield
P54: Reference : ASTM C 138

Sheet Designs & Results 2014-2015 (hidden)
B2: References For Mix Design | S2: Results | AB2: Values for Predicting 28-day Compressive Strength of Concrete* | AF2: Notes
B3: 1.Aggregate Size Mixes | F3: 2.W/C Ratio | I3: 3.Total Aggregates | L3: 4.Cementitious Materials | P3: 5.Fibers | S3: Mix Design | T3: Name of Mixer(s) | U3: Date Cast | V3: Date Broken | W3: Compressive Load (lbs) Specimen 1 | X3: Area (in2) | Y3: Compressive Strength (psi) | Z3: Estimated 28-day Strength (psi) | AF3: For the year of 2015 we have implemented the use of Utelite to help with the shrinkage of the concrete. The Utelite should be soaked at least 24 hours in advance to allow the concrete to be saturated. This will allow for water to be released over time and to help the concrete to be internally cured
B5: Mix | C5: Material | D5: Amount | F5: Mix | G5: Ratio | I5: Mix | J5: % of Agg. | L5: Mix | M5: Material | N5: % by Volume Compared to Cement Content | P5: Mix | Q5: Amount (lb) of Fibers per yd3 | AB5: Days of Cure | AC5: % Strenth | AD5: Reliability
S6: AFAAB | X6: =IF(V6="","",PI()*'45% Agg.'!P4^2/4) ->  | Y6: =IF(W6="","",W6/X6) ->  | Z6: =IF(Y6="","",IF(V6-U6=7,Y6/$AC$6,IF(V6-U6=14,Y6/$AC$7,IF(V6-U6=21,Y6/$AC$8,IF(V6-U6=28,Y6/$AC$9,""))))) ->  | AB6: 7-day | AC6: 0.7 | AD6: Good to use | AF6: Due to the challenges faced with the Silica Fume, we have not used it as of yet for this project.
B7: A | C7: Utelite | D7: 0.15 | F7: A | G7: 0.32 | I7: A | J7: 0.45 | S7: BECBD | T7: Brian C | U7: 2014-11-21 | X7: =IF(W7="","",PI()*3^2/4) ->  | Z7: =IF(Y7="","",IF(V7-U7=7,Y7/$AC$6,IF(V7-U7=14,Y7/$AC$7,IF(V7-U7=21,Y7/$AC$8,IF(V7-U7=28,Y7/$AC$9,""))))) ->  | AB7: 14 day** | AC7: 0.9 | AD7: Try not to use | AF7: Another mix design was added for when the statistical analysis can provide the best amount of aggregate for our mix.
C8: Size: 2-4 | D8: 0.3 | F8: B | G8: 0.34 | I8: B | J8: 0.5 | L8: A | M8: Fly Ash | N8: 1 | P8: A | Q8: 5 | S8: BJCBD | T8: Emily P | U8: 2014-11-21 | AB8: 21-day** | AC8: 0.95 | AD8: Try not to use
C9: Size: 1-2 | D9: 0 | F9: C | G9: 0.36 | I9: C | J9: 0.55 | M9: Silica Fume | N9: 0 | P9: B | Q9: 0 | S9: BEEBD | T9: Maria | U9: 2014-11-23 | AB9: 28-day | AC9: 1 | AD9: Good to use | AF9: Too much fiber, Found a glitch, too much water was being added.
C10: Size: 0.5-1 | D10: 0.24 | F10: D | G10: 0.38 | I10: D | J10: 0.6 | M10: Metakaolin | N10: 0.5 | P10: C | Q10: 9.5 | S10: BGCBC | T10: Luke | U10: 2014-12-04 | V10: =U10+7 -> 2014-12-11 | W10: 4875 | X10: 7.068583471 | Y10: 689.6714201 | Z10: 985.2448858 | AF10: Too much fiber, considering adding a admixture portion
C11: Size: 0.25-0.5 | D11: 0.15 | F11: E | G11: 0.4 | I11: E | J11: 0.65 | L11: B | M11: Fly Ash | N11: 0.5 | P11: D | Q11: 50 | S11: BGBBC | T11: Maria | U11: 2014-12-04 | V11: =U11+7 -> 2014-12-11 | W11: 4710 | X11: 7.068583471 | Y11: 666.3286951 | Z11: 951.8981358 | AB11: Notes about Compressive Strength | AF11: Too much fiber, a fiber portion was added to the references for mix design and mix design name
C12: Size: 0.1-0.3 | D12: 0.1 | F12: F | G12: 0.42 | I12: F | J12: 0.7 | M12: Silica Fume | N12: 0 | P12: E | Q12: 2.5 | S12: BAABA | T12: Chris | U12: 2014-12-11 | V12: 2014-12-18 | W12: 11125 | X12: 7.068583471 | Y12: 1573.865548 | Z12: 2248.379355 | AB12: *These values are extimates from looking on different sites on the internet and rounded up for a safety factor. These values also may not be as accurate with the different materials and admixtures used in the concrete canoe. | AF12: Found a glitch in the fiber calculation. It was fixed throughout the design. The mess ups are mentioned as Fiber D in the design
C13: Size: 0.04-0.125 | D13: 0.06 | F13: G | G13: 0.44 | I13: G | J13: 0.57 | M13: Metakaolin | N13: 0.5 | P13: F | Q13: 3 | S13: CBABA | T13: Hannah | U13: 2014-12-11 | V13: 2014-12-18 | W13: 13325 | X13: 7.068583471 | Y13: 1885.101882 | Z13: 2693.002688
C14: TOTAL | D14: =SUM(D7:D13) -> 1 | F14: H | G14: 0.46 | I14: H | J14: 0.58 | L14: C | M14: Fly Ash | N14: 0.25 | S14: CBCBA | T14: Chris | U14: 2015-01-13 | V14: 2015-02-10 | W14: 12410 | X14: 7.068583471 | Y14: 1755.655861 | Z14: 1755.655861 | AF14: Made an adjustment for the water content to add 70% initially and then more as necessary by 10% increments. CBABA was a little thick with its 80% water which makes it hard to work with.
B15: B | C15: Utelite | D15: 0.05 | F15: I | G15: 0.48 | I15: I | J15: 0.8 | M15: Silica Fume | N15: 0 | S15: CBBCA | T15: Zack | U15: 2015-01-13 | V15: 2015-02-10 | W15: 10470 | X15: 7.068583471 | Y15: 1481.202004 | Z15: 1481.202004
C16: Size: 2-4 | D16: 0.3 | F16: J | G16: 0.5 | I16: J | M16: Metakaolin | N16: 0.25 | S16: CBACA | T16: Zack | U16: 2015-01-20 | V16: 2015-01-27 | W16: 13660 | X16: 7.068583471 | Y16: 1932.494687 | Z16: 2760.706695
C17: Size: 1-2 | D17: 0.25 | F17: K | G17: 0.52 | I17: K | L17: D | M17: Fly Ash | N17: 0.6 | S17: CBBBA | T17: Maria | U17: 2015-01-20 | V17: 2015-01-27 | W17: 9400 | X17: 7.068583471 | Y17: 1329.827969 | Z17: 1899.754241 | AB17: ** The values for the 7-day and 28 day strength are generally accepted however the 21 and 14 day strengths are empirical and are less reliable.
C18: Size: 0.5-1 | D18: 0.15 | F18: L | G18: 0.54 | I18: L | M18: Silica Fume | N18: 0 | S18: DEABA | T18: Hannah | U18: 2015-01-20 | V18: 2015-01-27 | W18: 8090 | X18: 7.068583471 | Y18: 1144.50088 | Z18: 1635.001257
C19: Size: 0.25-0.5 | D19: 0.1 | F19: M | G19: 0.56 | I19: M | M19: Metakaolin | N19: 0.6 | S19: ECDDE | T19: Hannah | U19: 2015-01-22 | V19: 2015-01-29 | W19: 12995 | X19: 7.068583471 | Y19: 1838.416432 | Z19: 2626.309188 | AF19: Need to keep track of how much water is actually put into the mix.
C20: Size: 0.1-0.3 | D20: 0.1 | F20: N | G20: 0.58 | I20: N | L20: E | M20: Fly Ash | N20: 0.75 | S20: FGGEE | T20: Zack | U20: 2015-01-27 | V20: 2015-02-03 | W20: 7995 | X20: 7.068583471 | Y20: 1131.061129 | Z20: 1615.801613 | AF20: 80% water used.
C21: Size: 0.04-0.125 | D21: 0.05 | F21: O | G21: 0.6 | M21: Silica Fume | N21: 0 | S21: FEGEE | T21: John | U21: 2015-01-27 | V21: 2015-02-03 | W21: 8880 | X21: 7.068583471 | Y21: 1256.263017 | Z21: 1794.661454 | AF21: 80% water used. Halfway floats. Maybe should have used 70% water.
C22: TOTAL | D22: =SUM(D15:D21) -> 1 | F22: P | M22: Metakaolin | N22: 0.5 | S22: FCGFE | T22: Cade, Maria | U22: 2015-02-07 | V22: =U22+7 -> 2015-02-14 | W22: 7010 | X22: 7.068583471 | Y22: 991.7121343 | Z22: 1416.73162 | AF22: 80% water used. Floats. Estimated 28 day compression strength to be approximately 1550 psi.
B23: C | C23: Utelite | D23: 0.05 | F23: Q | L23: F | M23: Fly Ash | N23: 1 | S23: FDDGE | T23: Adrianne, Devon | U23: 2015-02-07 | V23: =U23+7 -> 2015-02-14 | W23: 2645 | X23: 7.068583471 | Y23: 374.1909551 | Z23: 534.5585073 | AF23: 80% water used. Floats. Estimated 28 day compression strength to be approximately 1800 psi.
C24: Size: 2-4 | D24: 0.2 | F24: R | M24: Silica Fume | N24: 0 | S24: FEGFE | T24: Seth | U24: 2015-02-07 | V24: 2015-02-14 | W24: 6650 | X24: 7.068583471 | Y24: 940.7825525 | Z24: 1343.975075 | AF24: 70% water used
C25: Size: 1-2 | D25: 0.2 | M25: Metakaolin | N25: 0 | S25: FEDGE | T25: Dan | U25: 2015-02-07 | V25: 2015-02-14 | W25: 2375 | X25: 7.068583471 | Y25: 335.9937687 | Z25: 479.9910982
C26: Size: 0.5-1 | D26: 0.2 | L26: G | M26: Fly Ash | N26: 0.75 | S26: FDGFE | T26: Adrianne | U26: 2015-02-07 | V26: 2015-02-14 | W26: 5665 | X26: 7.068583471 | Y26: 801.4335579 | Z26: 1144.905083
C27: Size: 0.25-0.5 | D27: 0.15 | M27: Silica Fume | N27: 0 | S27: FDHGE | T27: Hannah | U27: 2015-02-07 | V27: 2015-02-14 | W27: 4770 | X27: 7.068583471 | Y27: 674.8169587 | Z27: 964.0242267 | AF27: Too much Aggregate. Looks like the amount of agregate needed would be close to 57%, used 75% water
C28: Size: 0.1-0.3 | D28: 0.15 | M28: Metakaolin | N28: 0 | S28: FCDGE | T28: Bryce, John | U28: 2015-02-07 | V28: 2015-02-14 | W28: 2345 | X28: 7.068583471 | Y28: 331.7496369 | Z28: 473.9280528
C29: Size: 0.04-0.125 | D29: 0.05 | L29: H | M29: Fly Ash | N29: 0.9 | S29: FEHGE | T29: Maria | U29: 2015-02-07 | V29: 2015-02-14 | W29: 6325 | X29: 7.068583471 | Y29: 894.8044578 | Z29: 1278.292083 | AF29: 80% water used. This was too much water
C30: TOTAL | D30: =SUM(D23:D29) -> 1 | M30: Silica Fume | N30: 0 | S30: FDGKE | T30: Devon, John | U30: 2015-02-07 | V30: 2015-02-14 | W30: 6695 | X30: 7.068583471 | Y30: 947.1487502 | Z30: 1353.069643 | AF30: 80% water used
B31: D | C31: Utelite | D31: 0.05 | M31: Metakaolin | N31: 0 | S31: FDGLE | T31: Zack, Dan | U31: 2015-02-07 | V31: 2015-02-14 | W31: 7175 | X31: 7.068583471 | Y31: 1015.054859 | Z31: 1450.07837 | AF31: 80% water used.
C32: Size: 2-4 | D32: 0.23 | L32: I | M32: Fly Ash | N32: 0.75 | S32: FDGJE | T32: Maria | U32: 2015-02-07 | V32: 2015-02-14 | W32: 8355 | X32: 7.068583471 | Y32: 1181.990711 | Z32: 1688.558158
C33: Size: 1-2 | D33: 0.22 | M33: Silica Fume | N33: 0.05 | S33: FDGIE | T33: Luke, Adrianne | U33: 2015-02-07 | V33: 2015-02-14 | W33: 6650 | X33: 7.068583471 | Y33: 940.7825525 | Z33: 1343.975075 | AF33: 80% water use, kinda wet. Maybe use 75%,
C34: Size: 0.5-1 | D34: 0.2 | M34: Metakaolin | N34: 0 | S34: FEGLE | T34: Luke | U34: 2015-02-07 | V34: 2015-02-14 | W34: 8310 | X34: 7.068583471 | Y34: 1175.624513 | Z34: 1679.46359 | AF34: 70% water used but it was thick
C35: Size: 0.25-0.5 | D35: 0.15 | L35: J | M35: Fly Ash | N35: 0.75 | S35: FEGIE | T35: Maria, Hannah | U35: 2015-02-07 | V35: 2015-02-14 | W35: 7700 | X35: 7.068583471 | Y35: 1089.327166 | Z35: 1556.181666 | AF35: 80% water used
C36: Size: 0.1-0.3 | D36: 0.1 | M36: Silica Fume | N36: 0.04 | S36: FEGKE | T36: Zack, Dan | U36: 2015-02-07 | V36: 2015-02-14 | W36: 6600 | X36: 7.068583471 | Y36: 933.7089995 | Z36: 1333.869999
C37: Size: 0.04-0.125 | D37: 0.05 | M37: Metakaolin | N37: 0 | S37: FEGJE | T37: Luke, Adrianne | U37: 2015-02-07 | V37: 2015-02-14 | W37: 8160 | X37: 7.068583471 | Y37: 1154.403854 | Z37: 1649.148363 | AF37: 70% water used. A little thick
C38: TOTAL | D38: =SUM(D31:D37) -> 1 | L38: K | M38: Fly Ash | N38: 0.9 | X38: =IF(U38="","",PI()*3^2/4) ->  | AF38: 75% water used. Still too much. Maybe 72%
B39: E | C39: Utelite | D39: 0.03 | M39: Silica Fume | N39: 0.05 | S39: Final Mix | T39: Maria | U39: 2015-02-16 | V39: =U39+7 -> 2015-02-23 | W39: 8020 | X39: 7.068583471 | Y39: 1134.597905 | Z39: 1620.854151 | AF39: 70% water used. Notice the last 8 were using Silica Fume.
C40: Size: 2-4 | D40: 0.25 | M40: Metakaolin | N40: 0 | S40: Final Mix | T40: Maria | U40: 2015-02-16 | V40: =U40+7 -> 2015-02-23 | W40: 7605 | X40: 7.068583471 | Y40: 1075.887415 | Z40: 1536.982022
C41: Size: 1-2 | D41: 0.22 | L41: L | M41: Fly Ash | N41: 0.9
C42: Size: 0.5-1 | D42: 0.2 | M42: Silica Fume | N42: 0.04
C43: Size: 0.25-0.5 | D43: 0.15 | M43: Metakaolin | N43: 0
C44: Size: 0.1-0.3 | D44: 0.1
C45: Size: 0.04-0.125 | D45: 0.05
C46: TOTAL | D46: =SUM(D39:D45) -> 1
B47: F | C47: Utelite | D47: 0.03
C48: Size: 2-4 | D48: 0.26
C49: Size: 1-2 | D49: 0.23
C50: Size: 0.5-1 | D50: 0.21
C51: Size: 0.25-0.5 | D51: 0.12
C52: Size: 0.1-0.3 | D52: 0.09
C53: Size: 0.04-0.125 | D53: 0.06
C54: TOTAL | D54: =SUM(D47:D53) -> 1
B55: G | C55: Utelite | D55: 0
C56: Size: 2-4 | D56: 0
C57: Size: 1-2 | D57: 0
C58: Size: 0.5-1 | D58: 0.04 | F58: 0.5 | G58: =1-D58 -> 0.96 | I58: 96-100
C59: Size: 0.25-0.5 | D59: 0.3 | F59: 0.25 | G59: =G58-D59 -> 0.66 | I59: 65-75
C60: Size: 0.1-0.3 | D60: 0.45 | F60: 0.1 | G60: =G59-D60 -> 0.21 | I60: 20-30
C61: Size: 0.04-0.125 | D61: 0.21 | F61: 0.04 | G61: =G60-D61 -> 0 | I61: 0-4
C62: TOTAL | D62: =SUM(D55:D61) -> 1
B63: H | C63: Utelite | D63: 0.06
C64: Size: 2-4 | D64: 0.27
C65: Size: 1-2 | D65: 0.19
C66: Size: 0.5-1 | D66: 0.21
C67: Size: 0.25-0.5 | D67: 0.12
C68: Size: 0.1-0.3 | D68: 0.09
C69: Size: 0.04-0.125 | D69: 0.06
C70: TOTAL | D70: =SUM(D63:D69) -> 1
B71: I | C71: Utelite | D71: 0.1
C72: Size: 2-4 | D72: 0.24
C73: Size: 1-2 | D73: 0.21
C74: Size: 0.5-1 | D74: 0.2
C75: Size: 0.25-0.5 | D75: 0.11
C76: Size: 0.1-0.3 | D76: 0.08
C77: Size: 0.04-0.125 | D77: 0.06
C78: TOTAL | D78: =SUM(D71:D77) -> 1
